Workbook

Sheet Settings (hidden)
A1: ITEM | B1: VALUE1 | C1: VALUE2 | D1: VALUE3 | E1: INSERTED_DATE | F1: UPDATED_DATE
A2: COMPANY | B2: XLWorks | E2: DO NOT UPDATE
A3: AUTHOR_NAME | B3: XLWorks | E3: DO NOT UPDATE
A4: AUTHOR_EMAIL | B4: admin@xlworks.net | E4: DO NOT UPDATE
A5: PROGRAM_NAME | B5: XLGantt | E5: DO NOT UPDATE
A6: PROGRAM_SITE | B6: https://xlworks.net/en/xlgantt-project-scheduler/ | E6: DO NOT UPDATE
A7: PROGRAM_SITE_DISP | B7: XLWorks | E7: DO NOT UPDATE
A8: VERSION | B8: 4.7.0 | C8: {"TASK_FIRST_COL":"5","START_ROW":"5","WBS_AREA_LAST_COL":"31"} | D8: 82 | E8: DO NOT UPDATE
A9: RELEASE_DATE | B9: 2021-05-30 | E9: DO NOT UPDATE
A10: LICENSE | B10: Freeware | E10: DO NOT UPDATE
A11: OPTIONS_GENERAL | B11: Name:projectName | C11: XYZ시스템 구축 | D11: Name:isConfirmedProjectBasicInfo | E11: 1 | F11: Name:projectStartDate | G11: 2021-05-20 | H11: Name:projectEndDate | I11: 2021-10-18 | J11: Name:scheduleSheetPosition | K11: SCHEDULE_SHEET_POSITION:3545151617181920212223242526272829303132 | L11: Name:setTaskDateToProjectDate | M11: 1 | N11: Name:optScheduleChangeMgt | O11: 0 | P11: Name:optPlanRateCriteriaDate | Q11: TODAY | R11: Name:optFirstDayOfWeek | S11: 1 | T11: Name:chkWBSUpdateExecuteYN | U11: 1 | V11: Name:chkCheckForUpdatesOnStartup | W11: 1 | X11: Name:optNonWorkingDays | Y11: 1 | Z11: Name:chkImportDataOnStartup | AA11: 0 | AB11: Name:optRecalcWBSArea | AC11: 0 | AD11: Name:optWeekNum | AE11: 1 | AF11: Name:optWorkloadCalcByResourceAssignRate | AG11: 1
A12: OPTIONS_WBS_GANTT | B12: Name:completeTaskGrayDisplay | C12: 1 | D12: Name:taskDispInGroup | E12: 1 | F12: Name:taskDispInSub | G12: 0 | H12: Name:dateDisp | I12: 1 | J12: Name:ganttColWidth | K12: 0.7 | L12: Name:taskNameDisplayPosition | M12: 2 | N12: Name:actualRateDisp | O12: 1 | P12: Name:groupTaskInteriorGrayDisplay | Q12: 1 | R12: Name:optGanttChartColumnDisplay | S12: 7 | T12: Name:applyUserInputFirst | U12: 0 | V12: Name:txtGanttChartZoomRatio | W12: 100 | X12: Name:plannedRateDisp | Y12: 0 | Z12: Name:resourceDisp | AA12: 1 | AB12: Name:taskDisp | AC12: 1 | AD12: Name:groupRows | AE12: 1 | AF12: Name:dateDispOnTimescale | AG12: 2 | AH12: Name:txtNumberOfTaskColumn | AI12: 9 | AJ12: Name:chkYearDispOverTimescale | AK12: 1 | AL12: Name:chkProjectWeekNumDispOverTimescale | AM12: 1 | AN12: Name:cbxColorTheme | AO12: 1 | AP12: Name:themeColorList | AQ12: 10066176;10066176;26367;8421504;26367;8421504;16764108;16737792;65280;16737792;13311;65280;14540253;255 | AR12: Name:optAlignWBSColumn | AS12: -4131
A13: OPTIONS_DELIVERABLES_MGT | B13: Name:chkDeliverablesMgt | C13: 1 | D13: Name:savePathType | E13: DEFINED | F13: Name:txtDefinedPath | G13: C:\Temp | H13: Name:txtAutoDefinedBasePath | I13: C:\Temp
A14: OPTIONS_DELIVERABLES_PGM_PATH | B14: Name:txtPgmName1 | C14: Powerpoint | D14: Name:txtFileExt1 | E14: ppt* | F14: Name:txtPgmPath1 | G14: Automatically defined | H14: Name:chkInclude2SelectList1 | I14: FALSE | J14: Name:txtPgmName2 | K14: Word | L14: Name:txtFileExt2 | M14: doc* | N14: Name:txtPgmPath2 | O14: Automatically defined | P14: Name:chkInclude2SelectList2 | Q14: FALSE | R14: Name:txtPgmName3 | S14: Excel | T14: Name:txtFileExt3 | U14: xls* | V14: Name:txtPgmPath3 | W14: Automatically defined | X14: Name:chkInclude2SelectList3 | Y14: TRUE | Z14: Name:txtPgmName4 | AA14: AutoCAD | AB14: Name:txtFileExt4 | AC14: dwg | AD14: Name:txtPgmPath4 | AE14: C:\Program Files\Autodesk\AutoCAD 2019\acad.exe | AF14: Name:chkInclude2SelectList4 | AG14: TRUE | AH14: Name:txtPgmName5 | AI14: Notepad++ | AJ14: Name:txtFileExt5 | AK14: html | AL14: Name:txtPgmPath5 | AM14: C:\Program Files\Notepad++\notepad++.exe | AN14: Name:chkInclude2SelectList5 | AO14: FALSE | AP14: Name:txtPgmName6 | AQ14: 메모장 | AR14: Name:txtFileExt6 | AS14: txt | AT14: Name:txtPgmPath6 | AU14: C:\WINDOWS\system32\notepad.exe | AV14: Name:chkInclude2SelectList6 | AW14: TRUE | AX14: Name:txtPgmName7 | AZ14: Name:txtFileExt7 | BB14: Name:txtPgmPath7 | BD14: Name:chkInclude2SelectList7 | BF14: Name:txtPgmName8 | BH14: Name:txtFileExt8 | BJ14: Name:txtPgmPath8 | BL14: Name:chkInclude2SelectList8
A15: OPTIONS_LANGUAGE | B15: Name:languageSelectionType | C15: 1 | D15: Name:languageSelectedByManual | E15: 82 | F15: Name:selectedLanguageList | G15: 1:English,82:Korean,999:Custom | H15: Name:lastTranslatedLanguage | I15: 82

Sheet Help
A1: 엑셀간트(XLGantt) - 엑셀 일정관리 | J1: XLGantt 4.7.0 ©XLWorks
H2: 도움말, 최신 버전 다운로드 - https://xlworks.net/xlgantt-project-scheduler/
B4: 엑셀간트(XLGantt)는 마이크로소프트 엑셀에서 프로젝트 일정관리를 할 수 있도록 만들어진 프로그램이며 아래와 같은 기능으로 구성되어 있다. 엑셀 VBA로 작성된 매크로 프로그램이므로 설치가 필요없고 매크로 파일만 실행하면 된다.
B7: 시트 구성
B9: Schedule | D9: 작업과 일정을 입력하면 진척율이 계산되며 작업의 일정을 간트차트로 표시해 준다.
B10: Progress | D10: 작업량, 진척율 등을 볼 수 있다.
B11: AnalysisReport | D11: 담당별 진행율, Workload등 분석용 Report를 만들어서 보여준다.
B12: Calendar | D12: 프로젝트의 휴무일을 설정한다.
B13: Workload | D13: Workload data를 주별/월별로 만들어 준다. 피벗 등의 기능으로 사용자가 원하는대로 분석을 할 수 있다.
B14: ServerData | D14: Server가 별도로 존재하는 IT시스템의 일정관리 Data를 PC에서 보고자할 때 사용한다.
B15: TranslatedLanguages | D15: (숨겨진 시트) 언어별 번역이 들어 있다.
B17: 사용법
B19: 간단 사용법 | D19: 기능을 간단히 빨리 익히고 싶으면 “간단 사용법”을 참고한다 | L19: 도움말
B20: 작업입력, 스케줄 업데이트 | D20: 작업명, 시작일, 완료일, 진척율을 입력하면 휴무일, 가중치를 고려하여 자동으로 작업기간, 계획진척율, 실적진척율 등이 계산된다. | L20: 도움말
B21: 간트차트 표시방법 설정 | D21: Bar chart형태로 간트차트를 보여주며 여러 가지 표시방법을 옵션에서 설정할 수 있다. | L21: 도움말
B22: 프로젝트 전체 진행상황 파악하기 | D22: 진척율을 이용하여 프로젝트 전체 진행상황을 파악할 수 있다. | L22: 도움말
B23: 분석 리포트 | D23: 프로젝트의 현황을 파악할 수 있는 진행율, Workload 등의 분석 리포트와 분석용 Workload data를 제공한다. | L23: 도움말
B24: 일정계획 변경관리 | D24: 엑셀간트에서는 “일정계획 변경관리”기능을 이용하여 작업의 실제시작일과 실제완료일을 입력할 수 있다. 실제 시작된 날짜와 실제 완료된 날짜를 입력하여 일정이 지연되고 있는 지, 일정이 계획보다 빠른 지 파악할 수 있다. | L24: 도움말
B25: 산출물 | D25: 엑셀간트에서는 산출물의 저장 경로(폴더 위치)를 지정하고 Schedule시트에서 바로 산출물을 열 수 있는 기능을 제공한다. 리본 메뉴에서 “옵션” 버튼을 클릭하면 “산출물”과 관련된 설정을 할 수 있다. | L25: 도움말
B26: Microsoft Outlook작업, 일정등록 | D26: 엑셀간트에서는 Schedule시트에 입력되어 있는 작업을 Microsoft Outlook에 작업이나 일정으로 등록할 수 있는 기능을 제공한다(단, PC에 Microsoft Outlook이 설치되어 있어야 한다). | L26: 도움말
B27: 다국어 지원 | D27: 엑셀간트는 다국어를 지원하는데 프로그램을 수정하지 않고 여러 다국어를 추가할 수 있다. 현재는 한국어, 영어 2개 국어가 추가되어 있다. | L27: 도움말
B28: 다른 파일에서 일정 가져오기 | D28: 엑셀간트에서는 엑셀간트(XLGantt) 또는 일반 엑셀파일로 만들어진 일정을 가져오는 기능을 제공한다. | L28: 도움말
B29: Calendar | D29: 한주의 시작요일 지정, 휴무일 설정, 주차표시 기능을 제공한다. 리본메뉴 > XLGantt – Project Scheduler > 옵션 > “Calendar” 탭에서 설정할 수 있다. | L29: 도움말
B30: Excel기능과 통합 | D30: 엑셀간트에서는 입력된 프로젝트 정보를 가지고 올 수 있는 함수와 엑셀의 수식계산 기능 등을 엑셀간트에 포함할 수 있는 기능을 제공하고 있다. 이 기능을 이용하면 프로젝트의 상황에 맞도록 엑셀간트를 재 구성할 수 있다. | L30: 도움말
B31: Server Data 가져오기 | D31: Server가 별도로 존재하는 IT시스템의 일정관리 데이터를 PC에서 보고자할 때 Server에서 일정관리 데이터를 ServerData 시트에 넣은 후 파일을 다운로드하고 XLGantt 파일을 열면 이 데이터가 Schedule 시트로 들어온다. 서버에서 작업연결정보를 내려주면 작업을 연결해서 보여준다. | L31: 도움말
B33: XLGantt Version 4.7.0 사용조건
B34: 본 “소프트웨어”는 xlworks.net에서 개발하고 배포하는 무료 소프트웨어(Freeware)입니다. 이 프로그램은 개인/기업/관공서/학교 등 언제나 어디서나 무료로 사용이 가능합니다. 본 “소프트웨어”는 저작권법과 기타 지적재산권 관련 법률 및 국제 협약에 의해 보호를 받고 있으며, 본 “소프트웨어＂를 개작하거나 리버스 엔지니어링, 디컴파일, 디스어셈블, 다른 소프트웨어의 일부분으로 포함하여 제작 할 수 없습니다.

Sheet Schedule
D1: =xlgantt.ProjectName() -> XYZ시스템 구축 | AE1: =xlgantt.ProjectProgressString() -> 2021-05-20~2021-10-18 [계획:7.48% 실적:9.82%] | AF1: XLGantt 4.7.0 ©XLWorks 주별보기, Zoom 100%, 계산 옵션 : 자동
AE2: =xlgantt.CommentOnHeadArea() -> 별(*)표시는 필수입력 | AF2: W1 | AJ2: W5 | AN2: W9 | AR2: W13 | AV2: W17 | AZ2: W21
A3: reserved | B3: task_group | C3: wbs_level | D3: WBS | E3: 작업* | O3: 비고 | P3: 시작일* | Q3: 완료일* | R3: Calendar | S3: 총 작업량 | T3: 계획 작업량 | U3: 총 기간 | V3: 계획 기간 | W3: 실제 시작일 | X3: 실제 완료일 | Y3: 실제 총작업량 | Z3: 실제 총기간 | AA3: 가중치 | AB3: 담당 | AC3: 산출물 | AD3: 계획 | AE3: 실적* | AF3: 05/16 W21 | AJ3: 06/13 W25 | AN3: 07/11 W29 | AR3: 08/08 W33 | AV3: 09/05 W37 | AZ3: 10/03 W41
AF4: 2021-05-16 | AG4: 2021-05-23 | AH4: 2021-05-30 | AI4: 2021-06-06 | AJ4: 2021-06-13 | AK4: 2021-06-20 | AL4: 2021-06-27 | AM4: 2021-07-04 | AN4: 2021-07-11 | AO4: 2021-07-18 | AP4: 2021-07-25 | AQ4: 2021-08-01 | AR4: 2021-08-08 | AS4: 2021-08-15 | AT4: 2021-08-22 | AU4: 2021-08-29 | AV4: 2021-09-05 | AW4: 2021-09-12 | AX4: 2021-09-19 | AY4: 2021-09-26 | AZ4: 2021-10-03 | BA4: 2021-10-10 | BB4: 2021-10-17
B5: G | C5: 1 | D5: 1 | E5: 프로젝트 관리 | P5: 2021-05-20 | Q5: 2021-10-18 | S5: 35.8 | T5: 9 | U5: 105 | V5: 9 | Y5: 0 | Z5: 0 | AD5: 0.251396648 | AE5: 0.251396648 | AL5: ="" & TEXT(AE5,"#0.00%") & " " -> 25.14% | BB5: =" " & "프로젝트 관리" & " " & IF(P5="","",TEXT(P5,"M/D-")) & IF(Q5="","",TEXT(Q5,"M/D")) & " " -> 프로젝트 관리 5/20-10/18
B6: G | C6: 2 | D6: 1.1 | F6: 프로젝트 착수 및 계획수립 | P6: 2021-05-20 | Q6: 2021-06-11 | S6: 9 | T6: 9 | U6: 17 | V6: 9 | Y6: 0 | Z6: 0 | AD6: 1 | AE6: 0.9444444444 | AI6: =" " & TEXT(AE6,"#0.00%") & " " & "프로젝트 착수 및 계획수립" & " " & IF(P6="","",TEXT(P6,"M/D-")) & IF(Q6="","",TEXT(Q6,"M/D")) & " " -> 94.44% 프로젝트 착수 및 계획수립 5/20-6/11
C7: 3 | D7: 1.1.1 | G7: 프로젝트 착수 | P7: 2021-05-20 | Q7: 2021-05-21 | S7: 4 | T7: 4 | U7: 2 | V7: 2 | W7: 2020-12-21 | X7: 2020-12-22 | Y7: 2 | Z7: 2 | AA7: 1 | AB7: 이지은,김분석 | AD7: 1 | AE7: 1 | AF7: =" " & TEXT(AE7,"#0.00%") & " " & "프로젝트 착수" & "(이지은,김분석)" & " " & IF(P7="","",TEXT(P7,"M/D-")) & IF(Q7="","",TEXT(Q7,"M/D")) & " " -> 100.00% 프로젝트 착수(이지은,김분석) 5/20-5/21
B8: G | C8: 3 | D8: 1.1.2 | G8: 프로젝트 범위정의 | P8: 2021-05-24 | Q8: 2021-06-11 | S8: 5 | T8: 5 | U8: 15 | V8: 7 | Y8: 0 | Z8: 0 | AD8: 1 | AE8: 0.9 | AI8: =" " & TEXT(AE8,"#0.00%") & " " & "프로젝트 범위정의" & " " & IF(P8="","",TEXT(P8,"M/D-")) & IF(Q8="","",TEXT(Q8,"M/D")) & " " -> 90.00% 프로젝트 범위정의 5/24-6/11
C9: 4 | D9: 1.1.2.1 | H9: 프로젝트 계획 수립 | P9: 2021-05-24 | Q9: 2021-05-30 | S9: 5 | T9: 5 | U9: 5 | V9: 5 | W9: 2020-12-25 | Y9: -31553 | Z9: 0 | AA9: 1 | AB9: 이지은 | AD9: 1 | AE9: 0.9 | AH9: ="" & TEXT(AE9,"#0.00%") & " " & "프로젝트 계획 수립" & "(이지은)" & " " & IF(P9="","",TEXT(P9,"M/D-")) & IF(Q9="","",TEXT(Q9,"M/D")) & " " -> 90.00% 프로젝트 계획 수립(이지은) 5/24-5/30
A10: 1 | C10: 4 | D10: 1.1.2.2 | H10: 착수보고(Kick off) | P10: 2021-06-11 | Q10: 2021-06-11 | S10: 0 | T10: 0 | U10: 1 | V10: 0 | Z10: 0 | AA10: 1 | AB10: 이지은 | AD10: 0 | AE10: 0 | AI10: =" " & TEXT(AE10,"#0.00%") & " " & "착수보고(Kick off)" & "(이지은)" & " " & IF(P10="","",TEXT(P10,"M/D-")) & IF(Q10="","",TEXT(Q10,"M/D")) & " " -> 0.00% 착수보고(Kick off)(이지은) 6/11-6/11
B11: G | C11: 2 | D11: 1.2 | F11: 프로젝트 수행 및 통제 | P11: 2021-06-11 | Q11: 2021-09-15 | S11: 5.8 | T11: 0 | U11: 69 | V11: 0 | Y11: 0 | Z11: 0 | AD11: 0 | AE11: 0.08620689655 | AJ11: =" " & TEXT(AE11,"#0.00%") & " " -> 8.62% | AW11: =" " & "프로젝트 수행 및 통제" & " " & IF(P11="","",TEXT(P11,"M/D-")) & IF(Q11="","",TEXT(Q11,"M/D")) & " " -> 프로젝트 수행 및 통제 6/11-9/15
C12: 3 | D12: 1.2.1 | G12: 월간보고1 | P12: 2021-06-14 | Q12: 2021-06-18 | S12: 1 | T12: 0 | U12: 5 | V12: 0 | W12: 2021-01-15 | Y12: -31567 | Z12: 0 | AA12: 1 | AB12: 박피엠[20%] | AD12: 0 | AE12: 0.5 | AJ12: =" " & TEXT(AE12,"#0.00%") & " " & "월간보고1" & "(박피엠[20%])" & " " & IF(P12="","",TEXT(P12,"M/D-")) & IF(Q12="","",TEXT(Q12,"M/D")) & " " -> 50.00% 월간보고1(박피엠[20%]) 6/14-6/18
C13: 3 | D13: 1.2.2 | G13: 월간보고2 | P13: 2021-07-16 | Q13: 2021-07-16 | S13: 0.2 | T13: 0 | U13: 1 | V13: 0 | Z13: 0 | AA13: 1 | AB13: 박피엠[20%] | AD13: 0 | AE13: 0 | AN13: =" " & TEXT(AE13,"#0.00%") & " " & "월간보고2" & "(박피엠[20%])" & " " & IF(P13="","",TEXT(P13,"M/D-")) & IF(Q13="","",TEXT(Q13,"M/D")) & " " -> 0.00% 월간보고2(박피엠[20%]) 7/16-7/16
C14: 3 | D14: 1.2.3 | G14: 월간보고3 | P14: 2021-08-21 | Q14: 2021-09-15 | S14: 3.6 | T14: 0 | U14: 18 | V14: 0 | Z14: 0 | AA14: 1 | AB14: 박피엠[20%] | AD14: 0 | AE14: 0 | AS14: =" " & TEXT(AE14,"#0.00%") & " " -> 0.00% | AW14: =" " & "월간보고3" & "(박피엠[20%])" & " " & IF(P14="","",TEXT(P14,"M/D-")) & IF(Q14="","",TEXT(Q14,"M/D")) & " " -> 월간보고3(박피엠[20%]) 8/21-9/15
A15: 0 | C15: 3 | D15: 1.2.4 | G15: 중간보고 | P15: 2021-06-11 | Q15: 2021-06-11 | S15: 1 | T15: 0 | U15: 1 | V15: 0 | Z15: 0 | AA15: 1 | AD15: 0 | AE15: 0 | AI15: =" " & TEXT(AE15,"#0.00%") & " " & "중간보고" & " " & IF(P15="","",TEXT(P15,"M/D-")) & IF(Q15="","",TEXT(Q15,"M/D")) & " " -> 0.00% 중간보고 6/11-6/11
B16: G | C16: 2 | D16: 1.3 | F16: 프로젝트 종료 | P16: 2021-09-23 | Q16: 2021-10-18 | S16: 21 | T16: 0 | U16: 18 | V16: 0 | Y16: 0 | Z16: 0 | AD16: 0 | AE16: 0 | AX16: =" " & TEXT(AE16,"#0.00%") & " " -> 0.00% | BB16: =" " & "프로젝트 종료" & " " & IF(P16="","",TEXT(P16,"M/D-")) & IF(Q16="","",TEXT(Q16,"M/D")) & " " -> 프로젝트 종료 9/23-10/18
C17: 3 | D17: 1.3.1 | G17: 종료계획수립 | P17: 2021-09-23 | Q17: 2021-09-27 | S17: 6 | T17: 0 | U17: 3 | V17: 0 | Z17: 0 | AA17: 1 | AB17: 김분석,이지은 | AD17: 0 | AE17: 0 | AX17: =" " & TEXT(AE17,"#0.00%") & " " & "종료계획수립" & "(김분석,이지은)" & " " & IF(P17="","",TEXT(P17,"M/D-")) & IF(Q17="","",TEXT(Q17,"M/D")) & " " -> 0.00% 종료계획수립(김분석,이지은) 9/23-9/27
C18: 3 | D18: 1.3.2 | G18: 시스템 인수인계 | P18: 2021-09-30 | Q18: 2021-10-18 | S18: 13 | T18: 0 | U18: 13 | V18: 0 | Z18: 0 | AA18: 1 | AB18: 홍길동 | AD18: 0 | AE18: 0 | AY18: =" " & TEXT(AE18,"#0.00%") & " " & "시스템 인수인계" & "(홍길동)" & " " & IF(P18="","",TEXT(P18,"M/D-")) & IF(Q18="","",TEXT(Q18,"M/D")) & " " -> 0.00% 시스템 인수인계(홍길동) 9/30-10/18
C19: 3 | D19: 1.3.3 | G19: 종료보고 | P19: 2021-10-18 | Q19: 2021-10-18 | S19: 2 | T19: 0 | U19: 1 | V19: 0 | Z19: 0 | AA19: 1 | AB19: 나고객,이고객 | AD19: 0 | AE19: 0 | BB19: =" " & TEXT(AE19,"#0.00%") & " " & "종료보고" & "(나고객,이고객)" & " " & IF(P19="","",TEXT(P19,"M/D-")) & IF(Q19="","",TEXT(Q19,"M/D")) & " " -> 0.00% 종료보고(나고객,이고객) 10/18-10/18
A20: 1 | C20: 3 | D20: 1.3.4 | G20: 검수 및 종료 | P20: 2021-10-18 | Q20: 2021-10-18 | S20: 0 | T20: 0 | U20: 1 | V20: 0 | Z20: 0 | AA20: 1 | AD20: 0 | AE20: 0 | BB20: =" " & TEXT(AE20,"#0.00%") & " " & "검수 및 종료" & " " & IF(P20="","",TEXT(P20,"M/D-")) & IF(Q20="","",TEXT(Q20,"M/D")) & " " -> 0.00% 검수 및 종료 10/18-10/18
C21: 0 | U21: 0 | V21: 0 | Z21: 0
B22: G | C22: 1 | D22: 2 | E22: 시스템 개발 | P22: 2021-05-24 | Q22: 2021-09-26 | S22: 250.3 | T22: 12.4 | U22: 87 | V22: 7 | Y22: 0 | Z22: 0 | AD22: 0.04954055134 | AE22: 0.07628845386 | AH22: =" " & TEXT(AE22,"#0.00%") & " " -> 7.63% | AY22: =" " & "시스템 개발" & " " & IF(P22="","",TEXT(P22,"M/D-")) & IF(Q22="","",TEXT(Q22,"M/D")) & " " -> 시스템 개발 5/24-9/26
B23: G | C23: 2 | D23: 2.1 | F23: 분석 | P23: 2021-05-24 | Q23: 2021-06-11 | S23: 39.3 | T23: 12.4 | U23: 15 | V23: 7 | Y23: 0 | Z23: 0 | AD23: 0.3155216285 | AE23: 0.4858778626 | AH23: =" " & TEXT(AE23,"#0.00%") & " " & "분석" & " " & IF(P23="","",TEXT(P23,"M/D-")) & IF(Q23="","",TEXT(Q23,"M/D")) & " " -> 48.59% 분석 5/24-6/11
C24: 3 | D24: 2.1.1 | G24: 요구사항정의 | P24: 2021-05-24 | Q24: 2021-06-11 | S24: 15 | T24: 7 | U24: 15 | V24: 7 | W24: 2020-12-25 | X24: 2021-01-12 | Y24: 11 | Z24: 11 | AA24: 1 | AD24: 0.4666666667 | AE24: 1 | AI24: =" " & TEXT(AE24,"#0.00%") & " " & "요구사항정의" & " " & IF(P24="","",TEXT(P24,"M/D-")) & IF(Q24="","",TEXT(Q24,"M/D")) & " " -> 100.00% 요구사항정의 5/24-6/11
B25: G | C25: 3 | D25: 2.1.2 | G25: 논리모델구축 | P25: 2021-05-30 | Q25: 2021-06-10 | S25: 24.3 | T25: 5.4 | U25: 9 | V25: 2 | Y25: 0 | Z25: 0 | AD25: 0.2222222222 | AE25: 0.1685185185 | AH25: =" " & TEXT(AE25,"#0.00%") & " " & "논리모델구축" & " " & IF(P25="","",TEXT(P25,"M/D-")) & IF(Q25="","",TEXT(Q25,"M/D")) & " " -> 16.85% 논리모델구축 5/30-6/10
C26: 4 | D26: 2.1.2.1 | H26: 프로세스모델링 | P26: 2021-05-30 | Q26: 2021-06-10 | S26: 9 | T26: 2 | U26: 9 | V26: 2 | W26: 2020-12-31 | Y26: -31557 | Z26: 0 | AA26: 1 | AD26: 0.2222222222 | AE26: 0.2 | AH26: =" " & TEXT(AE26,"#0.00%") & " " & "프로세스모델링" & " " & IF(P26="","",TEXT(P26,"M/D-")) & IF(Q26="","",TEXT(Q26,"M/D")) & " " -> 20.00% 프로세스모델링 5/30-6/10
C27: 4 | D27: 2.1.2.2 | H27: 데이터모델링 | P27: 2021-05-30 | Q27: 2021-06-10 | S27: 15.3 | T27: 3.4 | U27: 9 | V27: 2 | W27: 2020-12-31 | Y27: -31557 | Z27: 0 | AA27: 1 | AB27: 박설계[120%],이지은[50%] | AD27: 0.2222222222 | AE27: 0.15 | AH27: =" " & TEXT(AE27,"#0.00%") & " " & "데이터모델링" & "(박설계[120%],이지은[50%])" & " " & IF(P27="","",TEXT(P27,"M/D-")) & IF(Q27="","",TEXT(Q27,"M/D")) & " " -> 15.00% 데이터모델링(박설계[120%],이지은[50%]) 5/30-6/10
B28: G | C28: 2 | D28: 2.2 | F28: 설계 | P28: 2021-06-13 | Q28: 2021-07-22 | S28: 50 | T28: 0 | U28: 29 | V28: 0 | Y28: 0 | Z28: 0 | AD28: 0 | AE28: 0 | AJ28: ="" & TEXT(AE28,"#0.00%") & " " -> 0.00% | AO28: =" " & "설계" & " " & IF(P28="","",TEXT(P28,"M/D-")) & IF(Q28="","",TEXT(Q28,"M/D")) & " " -> 설계 6/13-7/22
C29: 3 | D29: 2.2.1 | G29: UI 설계 | P29: 2021-06-13 | Q29: 2021-07-01 | S29: 14 | T29: 0 | U29: 14 | V29: 0 | Z29: 0 | AA29: 1 | AD29: 0 | AE29: 0 | AJ29: ="" & TEXT(AE29,"#0.00%") & " " & "UI 설계" & " " & IF(P29="","",TEXT(P29,"M/D-")) & IF(Q29="","",TEXT(Q29,"M/D")) & " " -> 0.00% UI 설계 6/13-7/1
B30: G | C30: 3 | D30: 2.2.2 | G30: 시스템 설계 | P30: 2021-06-20 | Q30: 2021-07-15 | S30: 32 | T30: 0 | U30: 19 | V30: 0 | Y30: 0 | Z30: 0 | AD30: 0 | AE30: 0 | AK30: ="" & TEXT(AE30,"#0.00%") & " " -> 0.00% | AN30: =" " & "시스템 설계" & " " & IF(P30="","",TEXT(P30,"M/D-")) & IF(Q30="","",TEXT(Q30,"M/D")) & " " -> 시스템 설계 6/20-7/15
C31: 4 | D31: 2.2.2.1 | H31: Architecture설계 | P31: 2021-06-20 | Q31: 2021-07-01 | S31: 9 | T31: 0 | U31: 9 | V31: 0 | Z31: 0 | AA31: 1 | AD31: 0 | AE31: 0 | AK31: ="" & TEXT(AE31,"#0.00%") & " " & "Architecture설계" & " " & IF(P31="","",TEXT(P31,"M/D-")) & IF(Q31="","",TEXT(Q31,"M/D")) & " " -> 0.00% Architecture설계 6/20-7/1
C32: 4 | D32: 2.2.2.2 | H32: 데이터베이스설계 | P32: 2021-06-27 | Q32: 2021-07-08 | S32: 9 | T32: 0 | U32: 9 | V32: 0 | Z32: 0 | AA32: 1 | AD32: 0 | AE32: 0 | AL32: ="" & TEXT(AE32,"#0.00%") & " " & "데이터베이스설계" & " " & IF(P32="","",TEXT(P32,"M/D-")) & IF(Q32="","",TEXT(Q32,"M/D")) & " " -> 0.00% 데이터베이스설계 6/27-7/8
C33: 4 | D33: 2.2.2.3 | H33: 프로그램설계 | P33: 2021-06-27 | Q33: 2021-07-15 | S33: 14 | T33: 0 | U33: 14 | V33: 0 | Z33: 0 | AA33: 1 | AD33: 0 | AE33: 0 | AL33: ="" & TEXT(AE33,"#0.00%") & " " & "프로그램설계" & " " & IF(P33="","",TEXT(P33,"M/D-")) & IF(Q33="","",TEXT(Q33,"M/D")) & " " -> 0.00% 프로그램설계 6/27-7/15
C34: 3 | D34: 2.2.3 | G34: 테스트 설계 | P34: 2021-07-18 | Q34: 2021-07-22 | S34: 4 | T34: 0 | U34: 4 | V34: 0 | Z34: 0 | AA34: 1 | AD34: 0 | AE34: 0 | AO34: ="" & TEXT(AE34,"#0.00%") & " " & "테스트 설계" & " " & IF(P34="","",TEXT(P34,"M/D-")) & IF(Q34="","",TEXT(Q34,"M/D")) & " " -> 0.00% 테스트 설계 7/18-7/22
B35: G | C35: 2 | D35: 2.3 | F35: 개발 | P35: 2021-07-18 | Q35: 2021-09-23 | S35: 155 | T35: 0 | U35: 46 | V35: 0 | Y35: 0 | Z35: 0 | AD35: 0 | AE35: 0 | AO35: ="" & TEXT(AE35,"#0.00%") & " " -> 0.00% | AX35: =" " & "개발" & " " & IF(P35="","",TEXT(P35,"M/D-")) & IF(Q35="","",TEXT(Q35,"M/D")) & " " -> 개발 7/18-9/23
B36: G | C36: 3 | D36: 2.3.1 | G36: 프로그램 개발 | P36: 2021-07-18 | Q36: 2021-09-15 | S36: 140 | T36: 0 | U36: 43 | V36: 0 | Y36: 0 | Z36: 0 | AD36: 0 | AE36: 0 | AO36: ="" & TEXT(AE36,"#0.00%") & " " -> 0.00% | AW36: =" " & "프로그램 개발" & " " & IF(P36="","",TEXT(P36,"M/D-")) & IF(Q36="","",TEXT(Q36,"M/D")) & " " -> 프로그램 개발 7/18-9/15
C37: 4 | D37: 2.3.1.1 | H37: 단위테스트시나리오작성 | P37: 2021-07-18 | Q37: 2021-07-22 | S37: 4 | T37: 0 | U37: 4 | V37: 0 | Z37: 0 | AA37: 1 | AD37: 0 | AE37: 0 | AO37: ="" & TEXT(AE37,"#0.00%") & " " & "단위테스트시나리오작성" & " " & IF(P37="","",TEXT(P37,"M/D-")) & IF(Q37="","",TEXT(Q37,"M/D")) & " " -> 0.00% 단위테스트시나리오작성 7/18-7/22
B38: G | C38: 4 | D38: 2.3.1.2 | H38: 프로그램코딩 및 단위테스트 | P38: 2021-07-18 | Q38: 2021-09-15 | S38: 136 | T38: 0 | U38: 43 | V38: 0 | Y38: 0 | Z38: 0 | AD38: 0 | AE38: 0 | AO38: ="" & TEXT(AE38,"#0.00%") & " " -> 0.00% | AW38: =" " & "프로그램코딩 및 단위테스트" & " " & IF(P38="","",TEXT(P38,"M/D-")) & IF(Q38="","",TEXT(Q38,"M/D")) & " " -> 프로그램코딩 및 단위테스트 7/18-9/15
B39: G | C39: 5 | D39: 2.3.1.2.1 | I39: 모듈A | P39: 2021-07-18 | Q39: 2021-08-05 | S39: 17 | T39: 0 | U39: 14 | V39: 0 | Y39: 0 | Z39: 0 | AD39: 0 | AE39: 0 | AO39: ="" & TEXT(AE39,"#0.00%") & " " & "모듈A" & " " & IF(P39="","",TEXT(P39,"M/D-")) & IF(Q39="","",TEXT(Q39,"M/D")) & " " -> 0.00% 모듈A 7/18-8/5
C40: 6 | D40: 2.3.1.2.1.1 | J40: 프로그램A | P40: 2021-07-18 | Q40: 2021-07-22 | S40: 4 | T40: 0 | U40: 4 | V40: 0 | Z40: 0 | AA40: 1 | AD40: 0 | AE40: 0 | AO40: ="" & TEXT(AE40,"#0.00%") & " " & "프로그램A" & " " & IF(P40="","",TEXT(P40,"M/D-")) & IF(Q40="","",TEXT(Q40,"M/D")) & " " -> 0.00% 프로그램A 7/18-7/22
C41: 6 | D41: 2.3.1.2.1.2 | J41: 프로그램B | P41: 2021-07-25 | Q41: 2021-07-29 | S41: 4 | T41: 0 | U41: 4 | V41: 0 | Z41: 0 | AA41: 1 | AD41: 0 | AE41: 0 | AP41: ="" & TEXT(AE41,"#0.00%") & " " & "프로그램B" & " " & IF(P41="","",TEXT(P41,"M/D-")) & IF(Q41="","",TEXT(Q41,"M/D")) & " " -> 0.00% 프로그램B 7/25-7/29
C42: 6 | D42: 2.3.1.2.1.3 | J42: 프로그램C | P42: 2021-07-25 | Q42: 2021-08-05 | S42: 9 | T42: 0 | U42: 9 | V42: 0 | Z42: 0 | AA42: 1 | AD42: 0 | AE42: 0 | AP42: ="" & TEXT(AE42,"#0.00%") & " " & "프로그램C" & " " & IF(P42="","",TEXT(P42,"M/D-")) & IF(Q42="","",TEXT(Q42,"M/D")) & " " -> 0.00% 프로그램C 7/25-8/5
C43: 5 | D43: 2.3.1.2.2 | I43: 모듈B | P43: 2021-07-18 | Q43: 2021-09-15 | S43: 43 | T43: 0 | U43: 43 | V43: 0 | Z43: 0 | AA43: 1 | AD43: 0 | AE43: 0 | AO43: ="" & TEXT(AE43,"#0.00%") & " " -> 0.00% | AW43: =" " & "모듈B" & " " & IF(P43="","",TEXT(P43,"M/D-")) & IF(Q43="","",TEXT(Q43,"M/D")) & " " -> 모듈B 7/18-9/15
C44: 5 | D44: 2.3.1.2.3 | I44: 모듈C | P44: 2021-07-18 | Q44: 2021-09-15 | S44: 43 | T44: 0 | U44: 43 | V44: 0 | Z44: 0 | AA44: 1 | AD44: 0 | AE44: 0 | AO44: ="" & TEXT(AE44,"#0.00%") & " " -> 0.00% | AW44: =" " & "모듈C" & " " & IF(P44="","",TEXT(P44,"M/D-")) & IF(Q44="","",TEXT(Q44,"M/D")) & " " -> 모듈C 7/18-9/15
C45: 5 | D45: 2.3.1.2.4 | I45: 모듈D | P45: 2021-08-01 | Q45: 2021-09-15 | S45: 33 | T45: 0 | U45: 33 | V45: 0 | Z45: 0 | AA45: 1 | AD45: 0 | AE45: 0 | AQ45: ="" & TEXT(AE45,"#0.00%") & " " -> 0.00% | AW45: =" " & "모듈D" & " " & IF(P45="","",TEXT(P45,"M/D-")) & IF(Q45="","",TEXT(Q45,"M/D")) & " " -> 모듈D 8/1-9/15
B46: G | C46: 3 | D46: 2.3.2 | G46: 테스트실시 | P46: 2021-08-29 | Q46: 2021-09-23 | S46: 15 | T46: 0 | U46: 16 | V46: 0 | Y46: 0 | Z46: 0 | AD46: 0 | AE46: 0 | AU46: ="" & TEXT(AE46,"#0.00%") & " " -> 0.00% | AX46: =" " & "테스트실시" & " " & IF(P46="","",TEXT(P46,"M/D-")) & IF(Q46="","",TEXT(Q46,"M/D")) & " " -> 테스트실시 8/29-9/23
C47: 4 | D47: 2.3.2.1 | H47: 통합테스트실시 | P47: 2021-08-29 | Q47: 2021-09-16 | S47: 14 | T47: 0 | U47: 14 | V47: 0 | Z47: 0 | AA47: 1 | AD47: 0 | AE47: 0 | AU47: ="" & TEXT(AE47,"#0.00%") & " " & "통합테스트실시" & " " & IF(P47="","",TEXT(P47,"M/D-")) & IF(Q47="","",TEXT(Q47,"M/D")) & " " -> 0.00% 통합테스트실시 8/29-9/16
C48: 4 | D48: 2.3.2.2 | H48: 시스템테스트실시 | P48: 2021-09-19 | Q48: 2021-09-23 | S48: 1 | T48: 0 | U48: 1 | V48: 0 | Z48: 0 | AA48: 1 | AD48: 0 | AE48: 0 | AX48: ="" & TEXT(AE48,"#0.00%") & " " & "시스템테스트실시" & " " & IF(P48="","",TEXT(P48,"M/D-")) & IF(Q48="","",TEXT(Q48,"M/D")) & " " -> 0.00% 시스템테스트실시 9/19-9/23
B49: G | C49: 2 | D49: 2.4 | F49: 구현 | P49: 2021-09-19 | Q49: 2021-09-26 | S49: 6 | T49: 0 | U49: 2 | V49: 0 | Y49: 0 | Z49: 0 | AD49: 0 | AE49: 0 | AX49: ="" & TEXT(AE49,"#0.00%") & " " & "구현" & " " & IF(P49="","",TEXT(P49,"M/D-")) & IF(Q49="","",TEXT(Q49,"M/D")) & " " -> 0.00% 구현 9/19-9/26
B50: G | C50: 3 | D50: 2.4.1 | G50: 구현준비 | P50: 2021-09-19 | Q50: 2021-09-21 | S50: 0 | T50: 0 | U50: 0 | V50: 0 | Y50: 0 | Z50: 0 | AD50: 0 | AE50: 0 | AX50: ="" & TEXT(AE50,"#0.00%") & " " & "구현준비" & " " & IF(P50="","",TEXT(P50,"M/D-")) & IF(Q50="","",TEXT(Q50,"M/D")) & " " -> 0.00% 구현준비 9/19-9/21
C51: 4 | D51: 2.4.1.1 | H51: Release 및 Contingency plan수립 | P51: 2021-09-19 | Q51: 2021-09-21 | S51: 0 | T51: 0 | U51: 0 | V51: 0 | Z51: 0 | AA51: 1 | AD51: 0 | AE51: 0 | AX51: ="" & TEXT(AE51,"#0.00%") & " " & "Release 및 Contingency plan수립" & " " & IF(P51="","",TEXT(P51,"M/D-")) & IF(Q51="","",TEXT(Q51,"M/D")) & " " -> 0.00% Release 및 Contingency plan수립 9/19-9/21
B52: G | C52: 3 | D52: 2.4.2 | G52: Conversion 및 Release | P52: 2021-09-23 | Q52: 2021-09-26 | S52: 6 | T52: 0 | U52: 2 | V52: 0 | Y52: 0 | Z52: 0 | AD52: 0 | AE52: 0 | AX52: =" " & TEXT(AE52,"#0.00%") & " " & "Conversion 및 Release" & " " & IF(P52="","",TEXT(P52,"M/D-")) & IF(Q52="","",TEXT(Q52,"M/D")) & " " -> 0.00% Conversion 및 Release 9/23-9/26
C53: 4 | D53: 2.4.2.1 | H53: 데이터베이스구축 | P53: 2021-09-23 | Q53: 2021-09-25 | S53: 2 | T53: 0 | U53: 2 | V53: 0 | Z53: 0 | AA53: 1 | AD53: 0 | AE53: 0 | AX53: =" " & TEXT(AE53,"#0.00%") & " " & "데이터베이스구축" & " " & IF(P53="","",TEXT(P53,"M/D-")) & IF(Q53="","",TEXT(Q53,"M/D")) & " " -> 0.00% 데이터베이스구축 9/23-9/25
C54: 4 | D54: 2.4.2.2 | H54: 소프트웨어설치 | P54: 2021-09-23 | Q54: 2021-09-25 | S54: 2 | T54: 0 | U54: 2 | V54: 0 | Z54: 0 | AA54: 1 | AD54: 0 | AE54: 0 | AX54: =" " & TEXT(AE54,"#0.00%") & " " & "소프트웨어설치" & " " & IF(P54="","",TEXT(P54,"M/D-")) & IF(Q54="","",TEXT(Q54,"M/D")) & " " -> 0.00% 소프트웨어설치 9/23-9/25
C55: 4 | D55: 2.4.2.3 | H55: 인수테스트실시 | P55: 2021-09-23 | Q55: 2021-09-25 | S55: 2 | T55: 0 | U55: 2 | V55: 0 | Z55: 0 | AA55: 1 | AD55: 0 | AE55: 0 | AX55: =" " & TEXT(AE55,"#0.00%") & " " & "인수테스트실시" & " " & IF(P55="","",TEXT(P55,"M/D-")) & IF(Q55="","",TEXT(Q55,"M/D")) & " " -> 0.00% 인수테스트실시 9/23-9/25
A56: 1 | C56: 4 | D56: 2.4.2.4 | H56: 시스템오픈 | P56: 2021-09-26 | Q56: 2021-09-26 | S56: 0 | T56: 0 | U56: 0 | V56: 0 | Z56: 0 | AA56: 1 | AD56: 0 | AE56: 0 | AY56: =" " & TEXT(AE56,"#0.00%") & " " & "시스템오픈" & " " & IF(P56="","",TEXT(P56,"M/D-")) & IF(Q56="","",TEXT(Q56,"M/D")) & " " -> 0.00% 시스템오픈 9/26-9/26

Sheet Progress
A1: 프로젝트 진척율 - 일정변경 관리하지 않을때
A2: * 프로젝트 작업량과 진척율을 보여줍니다.
A3: * "스케줄업데이트" 버튼 클릭 시 아래 항목이 자동계산됩니다.
A6: 프로젝트 전체 작업량 | B6: 286.1 | C6: Man/Day | D6: 프로젝트 전체의 작업량을 Man/Day로 표시한다. 가중치를 적용한 값이다.
A9: 현재일까지 계획된 작업량 | B9: 21.4 | C9: Man/Day | D9: 해당작업의 시작일부터 현재일까지의 작업기간을 의미함(현재 날짜까지 진행되었어야 할 기간)
A12: 실적기성 | B12: 28.095 | C12: Man/Day | D12: 실적기성(총기간 x 총실적진행율)
A15: 실제 투입된 작업량 | C15: Man/Day | D15: 일정변경 관리할 때 현재까지 실제로 투입된 작업기간을 표시함
A18: 계획 진척율(A) | B18: 0.07479902132 | D18: 현재날짜까지 계획된 진척율, WBS의 "계획진척율"의 전체 합계 진척율을 표시함
A21: 실적 진척율(B) | B21: 0.09819993009 | D21: 현재날짜까지 실제로 진행된 진척율, WBS의 "실적진척율"의 전체 합계 진척율을 표시함
A24: 차이(B-A) | B24: =ACTUAL_RATE-PLANNED_RATE -> 0.02340090877 | D24: 양수이면 계획보다 빨리 진행, 음수이면 지연

Sheet AnalysisReport
A1: 담당별 진행율
A2: * 담당별로 투입된 Task와 총작업량, 계획작업량, 진척작업을 Man-day로 보여주고, 계획/실적 진행율을 보여줍니다.
A3: * "담당별진행율" 메뉴를 클릭해야 내용이 갱신됩니다.
A6: 담당 | B6: WBS | C6: 작업 | D6: 시작일 | E6: 완료일 | F6: 자원배정비율 | G6: 총작업량(A) Man-day | H6: 계획작업량(B) Man-day | I6: 실적기성( C ) Man-day | J6: 계획(B/A) | K6: 실적(C/A) | L6: 차이(실적-계획)
A7: (담당자미지정) | B7: 1.2.4 | C7: 중간보고 | D7: 2021-06-11 | E7: 2021-06-11 | F7: 1 | G7: 1 | H7: 0 | I7: 0 | J7: 0 | K7: 0 | L7: =K7-J7 -> 0
A8: (담당자미지정) | B8: 1.3.4 | C8: 검수 및 종료 | D8: 2021-10-18 | E8: 2021-10-18 | F8: 0 | G8: 0 | H8: 0 | I8: 0 | J8: 0 | K8: 0 | L8: =K8-J8 -> 0
A9: (담당자미지정) | B9: 2.1.1 | C9: 요구사항정의 | D9: 2021-05-24 | E9: 2021-06-11 | F9: 1 | G9: 15 | H9: 7 | I9: 15 | J9: 0.4666666667 | K9: 1 | L9: =K9-J9 -> 0.5333333333
A10: (담당자미지정) | B10: 2.1.2.1 | C10: 프로세스모델링 | D10: 2021-05-30 | E10: 2021-06-10 | F10: 1 | G10: 9 | H10: 2 | I10: 1.8 | J10: 0.2222222222 | K10: 0.2 | L10: =K10-J10 -> -0.02222222222
A11: (담당자미지정) | B11: 2.2.1 | C11: UI 설계 | D11: 2021-06-13 | E11: 2021-07-01 | F11: 1 | G11: 14 | H11: 0 | I11: 0 | J11: 0 | K11: 0 | L11: =K11-J11 -> 0
A12: (담당자미지정) | B12: 2.2.2.1 | C12: Architecture설계 | D12: 2021-06-20 | E12: 2021-07-01 | F12: 1 | G12: 9 | H12: 0 | I12: 0 | J12: 0 | K12: 0 | L12: =K12-J12 -> 0
A13: (담당자미지정) | B13: 2.2.2.2 | C13: 데이터베이스설계 | D13: 2021-06-27 | E13: 2021-07-08 | F13: 1 | G13: 9 | H13: 0 | I13: 0 | J13: 0 | K13: 0 | L13: =K13-J13 -> 0
A14: (담당자미지정) | B14: 2.2.2.3 | C14: 프로그램설계 | D14: 2021-06-27 | E14: 2021-07-15 | F14: 1 | G14: 14 | H14: 0 | I14: 0 | J14: 0 | K14: 0 | L14: =K14-J14 -> 0
A15: (담당자미지정) | B15: 2.2.3 | C15: 테스트 설계 | D15: 2021-07-18 | E15: 2021-07-22 | F15: 1 | G15: 4 | H15: 0 | I15: 0 | J15: 0 | K15: 0 | L15: =K15-J15 -> 0
A16: (담당자미지정) | B16: 2.3.1.1 | C16: 단위테스트시나리오작성 | D16: 2021-07-18 | E16: 2021-07-22 | F16: 1 | G16: 4 | H16: 0 | I16: 0 | J16: 0 | K16: 0 | L16: =K16-J16 -> 0
A17: (담당자미지정) | B17: 2.3.1.2.1.1 | C17: 프로그램A | D17: 2021-07-18 | E17: 2021-07-22 | F17: 1 | G17: 4 | H17: 0 | I17: 0 | J17: 0 | K17: 0 | L17: =K17-J17 -> 0
A18: (담당자미지정) | B18: 2.3.1.2.1.2 | C18: 프로그램B | D18: 2021-07-25 | E18: 2021-07-29 | F18: 1 | G18: 4 | H18: 0 | I18: 0 | J18: 0 | K18: 0 | L18: =K18-J18 -> 0
A19: (담당자미지정) | B19: 2.3.1.2.1.3 | C19: 프로그램C | D19: 2021-07-25 | E19: 2021-08-05 | F19: 1 | G19: 9 | H19: 0 | I19: 0 | J19: 0 | K19: 0 | L19: =K19-J19 -> 0
A20: (담당자미지정) | B20: 2.3.1.2.2 | C20: 모듈B | D20: 2021-07-18 | E20: 2021-09-15 | F20: 1 | G20: 43 | H20: 0 | I20: 0 | J20: 0 | K20: 0 | L20: =K20-J20 -> 0
A21: (담당자미지정) | B21: 2.3.1.2.3 | C21: 모듈C | D21: 2021-07-18 | E21: 2021-09-15 | F21: 1 | G21: 43 | H21: 0 | I21: 0 | J21: 0 | K21: 0 | L21: =K21-J21 -> 0
A22: (담당자미지정) | B22: 2.3.1.2.4 | C22: 모듈D | D22: 2021-08-01 | E22: 2021-09-15 | F22: 1 | G22: 33 | H22: 0 | I22: 0 | J22: 0 | K22: 0 | L22: =K22-J22 -> 0
A23: (담당자미지정) | B23: 2.3.2.1 | C23: 통합테스트실시 | D23: 2021-08-29 | E23: 2021-09-16 | F23: 1 | G23: 14 | H23: 0 | I23: 0 | J23: 0 | K23: 0 | L23: =K23-J23 -> 0
A24: (담당자미지정) | B24: 2.3.2.2 | C24: 시스템테스트실시 | D24: 2021-09-19 | E24: 2021-09-23 | F24: 1 | G24: 1 | H24: 0 | I24: 0 | J24: 0 | K24: 0 | L24: =K24-J24 -> 0
A25: (담당자미지정) | B25: 2.4.1.1 | C25: Release 및 Contingency plan수립 | D25: 2021-09-19 | E25: 2021-09-21 | F25: 1 | G25: 0 | H25: 0 | I25: 0 | J25: 0 | K25: 0 | L25: =K25-J25 -> 0
A26: (담당자미지정) | B26: 2.4.2.1 | C26: 데이터베이스구축 | D26: 2021-09-23 | E26: 2021-09-25 | F26: 1 | G26: 2 | H26: 0 | I26: 0 | J26: 0 | K26: 0 | L26: =K26-J26 -> 0
A27: (담당자미지정) | B27: 2.4.2.2 | C27: 소프트웨어설치 | D27: 2021-09-23 | E27: 2021-09-25 | F27: 1 | G27: 2 | H27: 0 | I27: 0 | J27: 0 | K27: 0 | L27: =K27-J27 -> 0
A28: (담당자미지정) | B28: 2.4.2.3 | C28: 인수테스트실시 | D28: 2021-09-23 | E28: 2021-09-25 | F28: 1 | G28: 2 | H28: 0 | I28: 0 | J28: 0 | K28: 0 | L28: =K28-J28 -> 0
A29: (담당자미지정) | B29: 2.4.2.4 | C29: 시스템오픈 | D29: 2021-09-26 | E29: 2021-09-26 | F29: 0 | G29: 0 | H29: 0 | I29: 0 | J29: 0 | K29: 0 | L29: =K29-J29 -> 0
A30: (담당자미지정) 요약 | G30: =SUBTOTAL(9,G7:G29) -> 236 | H30: =SUBTOTAL(9,H7:H29) -> 9 | I30: =SUBTOTAL(9,I7:I29) -> 16.8 | J30: =H30/G30 -> 0.03813559322 | K30: =I30/G30 -> 0.07118644068 | L30: =K30-J30 -> 0.03305084746
A31: 김분석 | B31: 1.1.1 | C31: 프로젝트 착수 | D31: 2021-05-20 | E31: 2021-05-21 | F31: 1 | G31: 2 | H31: 2 | I31: 2 | J31: 1 | K31: 1 | L31: =K31-J31 -> 0
A32: 김분석 | B32: 1.3.1 | C32: 종료계획수립 | D32: 2021-09-23 | E32: 2021-09-27 | F32: 1 | G32: 3 | H32: 0 | I32: 0 | J32: 0 | K32: 0 | L32: =K32-J32 -> 0
A33: 김분석 요약 | G33: =SUBTOTAL(9,G31:G32) -> 5 | H33: =SUBTOTAL(9,H31:H32) -> 2 | I33: =SUBTOTAL(9,I31:I32) -> 2 | J33: =H33/G33 -> 0.4 | K33: =I33/G33 -> 0.4 | L33: =K33-J33 -> 0
A34: 나고객 | B34: 1.3.3 | C34: 종료보고 | D34: 2021-10-18 | E34: 2021-10-18 | F34: 1 | G34: 1 | H34: 0 | I34: 0 | J34: 0 | K34: 0 | L34: =K34-J34 -> 0
A35: 나고객 요약 | G35: =SUBTOTAL(9,G34:G34) -> 1 | H35: =SUBTOTAL(9,H34:H34) -> 0 | I35: =SUBTOTAL(9,I34:I34) -> 0 | J35: =H35/G35 -> 0 | K35: =I35/G35 -> 0 | L35: =K35-J35 -> 0
A36: 박설계 | B36: 2.1.2.2 | C36: 데이터모델링 | D36: 2021-05-30 | E36: 2021-06-10 | F36: 1.2 | G36: 10.8 | H36: 2.4 | I36: 1.62 | J36: 0.2222222222 | K36: 0.15 | L36: =K36-J36 -> -0.07222222222
A37: 박설계 요약 | G37: =SUBTOTAL(9,G36:G36) -> 10.8 | H37: =SUBTOTAL(9,H36:H36) -> 2.4 | I37: =SUBTOTAL(9,I36:I36) -> 1.62 | J37: =H37/G37 -> 0.2222222222 | K37: =I37/G37 -> 0.15 | L37: =K37-J37 -> -0.07222222222
A38: 박피엠 | B38: 1.2.1 | C38: 월간보고1 | D38: 2021-06-14 | E38: 2021-06-18 | F38: 0.2 | G38: 1 | H38: 0 | I38: 0.5 | J38: 0 | K38: 0.5 | L38: =K38-J38 -> 0.5
A39: 박피엠 | B39: 1.2.2 | C39: 월간보고2 | D39: 2021-07-16 | E39: 2021-07-16 | F39: 0.2 | G39: 0.2 | H39: 0 | I39: 0 | J39: 0 | K39: 0 | L39: =K39-J39 -> 0
A40: 박피엠 | B40: 1.2.3 | C40: 월간보고3 | D40: 2021-08-21 | E40: 2021-09-15 | F40: 0.2 | G40: 3.6 | H40: 0 | I40: 0 | J40: 0 | K40: 0 | L40: =K40-J40 -> 0
A41: 박피엠 요약 | G41: =SUBTOTAL(9,G38:G40) -> 4.8 | H41: =SUBTOTAL(9,H38:H40) -> 0 | I41: =SUBTOTAL(9,I38:I40) -> 0.5 | J41: =H41/G41 -> 0 | K41: =I41/G41 -> 0.1041666667 | L41: =K41-J41 -> 0.1041666667
A42: 이고객 | B42: 1.3.3 | C42: 종료보고 | D42: 2021-10-18 | E42: 2021-10-18 | F42: 1 | G42: 1 | H42: 0 | I42: 0 | J42: 0 | K42: 0 | L42: =K42-J42 -> 0
A43: 이고객 요약 | G43: =SUBTOTAL(9,G42:G42) -> 1 | H43: =SUBTOTAL(9,H42:H42) -> 0 | I43: =SUBTOTAL(9,I42:I42) -> 0 | J43: =H43/G43 -> 0 | K43: =I43/G43 -> 0 | L43: =K43-J43 -> 0
A44: 이지은 | B44: 1.1.1 | C44: 프로젝트 착수 | D44: 2021-05-20 | E44: 2021-05-21 | F44: 1 | G44: 2 | H44: 2 | I44: 2 | J44: 1 | K44: 1 | L44: =K44-J44 -> 0
A45: 이지은 | B45: 1.1.2.1 | C45: 프로젝트 계획 수립 | D45: 2021-05-24 | E45: 2021-05-30 | F45: 1 | G45: 5 | H45: 5 | I45: 4.5 | J45: 1 | K45: 0.9 | L45: =K45-J45 -> -0.1
A46: 이지은 | B46: 1.1.2.2 | C46: 착수보고(Kick off) | D46: 2021-06-11 | E46: 2021-06-11 | F46: 0 | G46: 0 | H46: 0 | I46: 0 | J46: 0 | K46: 0 | L46: =K46-J46 -> 0
A47: 이지은 | B47: 1.3.1 | C47: 종료계획수립 | D47: 2021-09-23 | E47: 2021-09-27 | F47: 1 | G47: 3 | H47: 0 | I47: 0 | J47: 0 | K47: 0 | L47: =K47-J47 -> 0
A48: 이지은 | B48: 2.1.2.2 | C48: 데이터모델링 | D48: 2021-05-30 | E48: 2021-06-10 | F48: 0.5 | G48: 4.5 | H48: 1 | I48: 0.675 | J48: 0.2222222222 | K48: 0.15 | L48: =K48-J48 -> -0.07222222222
A49: 이지은 요약 | G49: =SUBTOTAL(9,G44:G48) -> 14.5 | H49: =SUBTOTAL(9,H44:H48) -> 8 | I49: =SUBTOTAL(9,I44:I48) -> 7.175 | J49: =H49/G49 -> 0.5517241379 | K49: =I49/G49 -> 0.4948275862 | L49: =K49-J49 -> -0.05689655172
A50: 홍길동 | B50: 1.3.2 | C50: 시스템 인수인계 | D50: 2021-09-30 | E50: 2021-10-18 | F50: 1 | G50: 13 | H50: 0 | I50: 0 | J50: 0 | K50: 0 | L50: =K50-J50 -> 0
A51: 홍길동 요약 | G51: =SUBTOTAL(9,G50:G50) -> 13 | H51: =SUBTOTAL(9,H50:H50) -> 0 | I51: =SUBTOTAL(9,I50:I50) -> 0 | J51: =H51/G51 -> 0 | K51: =I51/G51 -> 0 | L51: =K51-J51 -> 0
A53: 총합계 | G53: =SUBTOTAL(9,G7:G52) -> 286.1 | H53: =SUBTOTAL(9,H7:H52) -> 21.4 | I53: =SUBTOTAL(9,I7:I52) -> 28.095 | J53: =H53/G53 -> 0.07479902132 | K53: =I53/G53 -> 0.09819993009 | L53: =K53-J53 -> 0.02340090877

Sheet Calendar
A1: 프로젝트 휴무일 Calendar 설정
A2: 여기에는 프로젝트의 휴무일만 입력하세요.휴무일을 제외한 날짜는 근무일자로 설정됩니다. 휴무일을 입력해야 작업기간 계산시 반영합니다. 입력한 일자만큼 작업기간에서 제외합니다. (단, 옵션창의 캘린더 설정에 따라 휴무일계산방법은 달라질 수 있습니다.) 표준캘린더는 기본으로 적용되는 캘린더이며 특정 작업에 다른 캘린더를 지정하고 싶으면 "사용자정의 캘린더1", "사용자정의 캘린더2"에 휴무일을 지정하여 사용합니다.
A3: 표준캘린더 | D3: 사용자정의 캘린더1 | G3: 사용자정의 캘린더2
A4: 휴무일명 | B4: 휴무일자 | D4: 휴무일명 | E4: 휴무일자 | G4: 휴무일명 | H4: 휴무일자
A5: 2020년 신정 | B5: 2020-01-01 | C5: =IF(B5>0,TEXT(B5,"(aaa)"),"") -> (수) | F5: =IF(E5>0,TEXT(E5,"(aaa)"),"") ->  | I5: =IF(H5>0,TEXT(H5,"(aaa)"),"") -> 
A6: 2020년 설연휴 | B6: 2020-01-24 | C6: (금)
A7: 2020년 설날 대체휴일 | B7: 2020-01-27 | C7: (월)
A8: 21대 국회위원 선거일 | B8: 2020-04-15 | C8: (수)
A9: 2020년 부처님오신날 | B9: 2020-04-30 | C9: (목)
A10: 2020년 어린이날 | B10: 2020-05-05 | C10: (화)
A11: 2020년 8월 임시공휴일 | B11: 2020-08-17 | C11: (월)
A12: 2020년 추석연휴 | B12: 2020-09-30 | C12: (수)
A13: 2020년 추석 | B13: 2020-10-01 | C13: (목)
A14: 2020년 추석연휴 | B14: 2020-10-02 | C14: (금)
A15: 2020년 한글날 | B15: 2020-10-09 | C15: (금)
A16: 2020년 성탄절 | B16: 2020-12-25 | C16: (금)
A17: 2021년 신정 | B17: 2021-01-01 | C17: (금)
A18: 2021년 설연휴 | B18: 2021-02-11 | C18: (목)
A19: 2021년 설날 | B19: 2021-02-12 | C19: (금)
A20: 2021년 삼일절 | B20: 2021-03-01 | C20: (월)
A21: 2021년 어린이날 | B21: 2021-05-05 | C21: (수)
A22: 2021년 부처님오신날 | B22: 2021-05-19 | C22: (수)
A23: 2021년 추석연휴 | B23: 2021-09-20 | C23: (월)
A24: 2021년 추석 | B24: 2021-09-21 | C24: (화)
A25: 2021년 추석연휴 | B25: 2021-09-22 | C25: (수)
C69: =IF(B69>0,TEXT(B69,"(aaa)"),"") ->  | F69: =IF(E69>0,TEXT(E69,"(aaa)"),"") ->  | I69: =IF(H69>0,TEXT(H69,"(aaa)"),"") -> 
C133: =IF(B133>0,TEXT(B133,"(aaa)"),"") ->  | F133: =IF(E133>0,TEXT(E133,"(aaa)"),"") ->  | I133: =IF(H133>0,TEXT(H133,"(aaa)"),"") -> 
C197: =IF(B197>0,TEXT(B197,"(aaa)"),"") ->  | F197: =IF(E197>0,TEXT(E197,"(aaa)"),"") ->  | I197: =IF(H197>0,TEXT(H197,"(aaa)"),"") -> 
C261: =IF(B261>0,TEXT(B261,"(aaa)"),"") ->  | F261: =IF(E261>0,TEXT(E261,"(aaa)"),"") ->  | I261: =IF(H261>0,TEXT(H261,"(aaa)"),"") -> 
A305: 더 이상 입력불가 | D305: 더 이상 입력불가 | G305: 더 이상 입력불가

Sheet TranslatedLanguages (hidden)
A1: Reserved | B1: Text Index | C1: Description | D1: English | E1: Korean | F1: Custom
A2: F | B2: 1 | C2: reserved index | D2: * Currently we support only English and Korean as user interface (UI) languages at XLGantt. If you want to use another language as your UI language, add it using the "Add Languages" menu. Add a translation for each language in the "TranslatedLanguages" sheet. (The TranslatedLanguages sheet is hidden. You can unhide it on the sheet menu.) If you do not add the translation, English is used as the UI language. | E2: * 현재 XLGantt는 영어와 한국어만 지원합니다. 다른 언어가 필요하면 아래 "언어추가"에서 다른 언어를 추가하고 TranslatedLanguages sheet에 각 언어별로 번역을 추가해야 합니다. 번역을 추가하지 않으면 기본언어인 영어로 표시됩니다(TranslatedLanguages sheet는 숨겨져 있음,Sheet메뉴에서 숨기기 취소하면 볼 수 있음) | F2: * 현재 XLGantt는 영어와 한국어만 지원합니다. 다른 언어가 필요하면 아래 "언어추가"에서 다른 언어를 추가하고 TranslatedLanguages sheet에 각 언어별로 번역을 추가해야 합니다. 번역을 추가하지 않으면 기본언어인 영어로 표시됩니다(TranslatedLanguages sheet는 숨겨져 있음,Sheet메뉴에서 숨기기 취소하면 볼 수 있음)
A3: 600 | B3: 2 | C3: reserved index | D3: Please enter nonworking days only. All days other than nonworking days will be set as working days. \nWhen you enter nonworking days, XLGantt excludes them from calculations of working time.\n(However, depending on the calendar setting in the Options window, the calculation method of the nonworking day can be different)\nStandard calendar is the default calendar. If you want to specify a different calendar for a specific task, please use "User Defined Calendar 1" or "User Defined Calendar 2" | E3: 여기에는 프로젝트의 휴무일만 입력하세요.휴무일을 제외한 날짜는 근무일자로 설정됩니다. \n휴무일을 입력해야 작업기간 계산시 반영합니다. 입력한 일자만큼 작업기간에서 제외합니다.\n(단, 옵션창의 캘린더 설정에 따라 휴무일계산방법은 달라질 수 있습니다.)\n표준캘린더는 기본으로 적용되는 캘린더이며 특정 작업에 다른 캘린더를 지정하고 싶으면 "사용자정의 캘린더1", "사용자정의 캘린더2"에 휴무일을 지정하여 사용합니다. | F3: 여기에는 프로젝트의 휴무일만 입력하세요.휴무일을 제외한 날짜는 근무일자로 설정됩니다. \n휴무일을 입력해야 작업기간 계산시 반영합니다. 입력한 일자만큼 작업기간에서 제외합니다.\n(단, 옵션창의 캘린더 설정에 따라 휴무일계산방법은 달라질 수 있습니다.)\n표준캘린더는 기본으로 적용되는 캘린더이며 특정 작업에 다른 캘린더를 지정하고 싶으면 "사용자정의 캘린더1", "사용자정의 캘린더2"에 휴무일을 지정하여 사용합니다.
B4: 3 | C4: reserved index | D4: The earliest start date({1}) of the tasks is earlier than the start date({2}) of the project.\n\nThe latest finish date({3}) of the tasks is later than the finish date({4}) of the project.\n\nIn this case, there may be problems with resource calculations. Please change the start date and finish date to valid date. | E4: 가장 빠른 작업의 시작일({1})이 프로젝트 시작일({2})보다 더 빠릅니다.\n\n가장 늦은 완료일({3})이 프로젝트 기간정보의 완료일({4})보다 더 늦습니다.\n\n이 경우 리소스 계산등에 문제가 있을 수 있습니다. 시작일,완료일을 환경설정메뉴의 프로젝트 기간내로 조정하거나 프로젝트 기간을 조정하시기 바랍니다. | F4: 가장 빠른 작업의 시작일({1})이 프로젝트 시작일({2})보다 더 빠릅니다.\n\n가장 늦은 완료일({3})이 프로젝트 기간정보의 완료일({4})보다 더 늦습니다.\n\n이 경우 리소스 계산등에 문제가 있을 수 있습니다. 시작일,완료일을 환경설정메뉴의 프로젝트 기간내로 조정하거나 프로젝트 기간을 조정하시기 바랍니다.
B5: 4 | C5: reserved index | D5: Error! Cause may be one of the following.\n * File is invalid(e.g. the Excel file corrupted)\n * Data format is invalid(First row:title, from second row:contents or XLGantt file is valid)\n * If you cancel to open the file that is already opened\n\n Please check the messages below for details. | E5: 작업 중 에러가 발생했습니다. 원인은 다음 중 하나일 수 있습니다.\n - 파일이 비정상적인 경우(엑셀파일이 손상된 경우 등)\n - 자료 포맷이 틀린 경우(1행에 제목, 2행부터 내용이 들어가 있는 포맷 또는 XLGantt 파일만 허용)\n - 이미 열려있는 파일을 또 열다가 취소하는 경우\n\n 자세한 원인은 아래의 메시지를 확인하시기 바랍니다. | F5: 작업 중 에러가 발생했습니다. 원인은 다음 중 하나일 수 있습니다.\n - 파일이 비정상적인 경우(엑셀파일이 손상된 경우 등)\n - 자료 포맷이 틀린 경우(1행에 제목, 2행부터 내용이 들어가 있는 포맷 또는 XLGantt 파일만 허용)\n - 이미 열려있는 파일을 또 열다가 취소하는 경우\n\n 자세한 원인은 아래의 메시지를 확인하시기 바랍니다.
B6: 5 | C6: reserved index | D6: * You can import files created in XLGantt. * You can import files if the version is 0.9.7 or higher than 0.9.7 * You can import up to 10,000 records. * You can import multiple files simultaneously. | E6: * 가져올 파일이 XLGantt로 작성된 경우만 가능 \n* XLGantt의 버전이 0.9.7 이상인 경우만 가능\n* 자료의 갯수는 10,000개 이하까지만 처리됨 \n* 여러개의 파일 동시처리 가능 | F6: * 가져올 파일이 XLGantt로 작성된 경우만 가능 \n* XLGantt의 버전이 0.9.7 이상인 경우만 가능\n* 자료의 갯수는 10,000개 이하까지만 처리됨 \n* 여러개의 파일 동시처리 가능
B7: 6 | C7: reserved index | D7: Project duration is too long. The earliest start date is {1} and the latest finish date is {2}, so the project duration is {3} days. The maximum number of days allowed in XLGantt is {4} days. Reduce the project duration to within the limits allowed by XLGantt. | E7: 프로젝트 기간이 너무 깁니다. 가장 빠른 시작일자는 {1}이고 가장 늦은 완료일자는 {2}이므로 프로젝트 기간은 {3}일입니다. XLGantt에서 허용되는 최대일수는 {4}일입니다. 프로젝트 기간을 XLGantt에서 허용하는 범위내로 줄이십시오. | F7: 프로젝트 기간이 너무 깁니다. 가장 빠른 시작일자는 {1}이고 가장 늦은 완료일자는 {2}이므로 프로젝트 기간은 {3}일입니다. XLGantt에서 허용되는 최대일수는 {4}일입니다. 프로젝트 기간을 XLGantt에서 허용하는 범위내로 줄이십시오.
B8: 7 | C8: reserved index | D8: Saturdays, Sundays and the dates entered in the Calendar sheet | E8: 토요일,일요일 및 Calendar sheet에 입력된 날짜 | F8: 토요일,일요일 및 Calendar sheet에 입력된 날짜
B9: 8 | C9: reserved index, for help sheet | D9: XLGantt is a program designed to enable project scheduling in Microsoft Excel. It is composed of the following features. You don't need to install this program because it is a Excel macro file. You just download this file, save it to a folder, and open it in Excel. | E9: 엑셀간트(XLGantt)는 마이크로소프트 엑셀에서 프로젝트 일정관리를 할 수 있도록 만들어진 프로그램이며 아래와 같은 기능으로 구성되어 있다. 엑셀 VBA로 작성된 매크로 프로그램이므로 설치가 필요없고 매크로 파일만 실행하면 된다. | F9: 엑셀간트(XLGantt)는 마이크로소프트 엑셀에서 프로젝트 일정관리를 할 수 있도록 만들어진 프로그램이며 아래와 같은 기능으로 구성되어 있다. 엑셀 VBA로 작성된 매크로 프로그램이므로 설치가 필요없고 매크로 파일만 실행하면 된다.
B10: 9 | C10: reserved index, for help sheet | D10: Currently we support only English and Korean as user interface(UI) language at XLGantt. Since the program code and the resource file for multiple languages ​​are separated, it is possible to add multiple languages ​​without modifying the program. | E10: 엑셀간트는 다국어를 지원하는데 프로그램을 수정하지 않고 여러 다국어를 추가할 수 있다. 현재는 한국어, 영어 2개 국어가 추가되어 있다. | F10: 엑셀간트는 다국어를 지원하는데 프로그램을 수정하지 않고 여러 다국어를 추가할 수 있다. 현재는 한국어, 영어 2개 국어가 추가되어 있다.
B11: 10 | C11: reserved index, for help sheet | D11: When you enter nonworking days, XLGantt excludes them from calculations of working time. Standard calendar is the default calendar. If you want to specify a different calendar for a specific task, please use "User Defined Calendar 1" or "User Defined Calendar 2". | E11: 한주의 시작요일 지정, 휴무일 설정, 주차표시 기능을 제공한다. 리본메뉴 > XLGantt – Project Scheduler > 옵션 > “Calendar” 탭에서 설정할 수 있다. | F11: 한주의 시작요일 지정, 휴무일 설정, 주차표시 기능을 제공한다. 리본메뉴 > XLGantt – Project Scheduler > 옵션 > “Calendar” 탭에서 설정할 수 있다.
B12: 11 | C12: reserved index, for help sheet | D12: You can use this feature if you want to see the server's schedule data. If you put the schedule data on the Server into the ServerData sheet and download the XLGantt file and open the XLGantt file, the data comes into the Schedule sheet. | E12: Server가 별도로 존재하는 IT시스템의 일정관리 데이터를 PC에서 보고자할 때 Server에서 일정관리 데이터를 ServerData 시트에 넣은 후 파일을 다운로드하고 XLGantt 파일을 열면 이 데이터가 Schedule 시트로 들어온다. 서버에서 작업연결정보를 내려주면 작업을 연결해서 보여준다. | F12: Server가 별도로 존재하는 IT시스템의 일정관리 데이터를 PC에서 보고자할 때 Server에서 일정관리 데이터를 ServerData 시트에 넣은 후 파일을 다운로드하고 XLGantt 파일을 열면 이 데이터가 Schedule 시트로 들어온다. 서버에서 작업연결정보를 내려주면 작업을 연결해서 보여준다.
B13: 12 | C13: reserved index, for help sheet | D13: This “Program” is free software developed and distributed by xlworks.net. This program is free to use anywhere, anytime including personal / business / government / school. This Software is protected by copyright laws and other intellectual property laws and international treaties and may not be modified, reverse engineered, decompiled, disassembled, or made part of other software. | E13: 본 “소프트웨어”는 xlworks.net에서 개발하고 배포하는 무료 소프트웨어(Freeware)입니다. 이 프로그램은 개인/기업/관공서/학교 등 언제나 어디서나 무료로 사용이 가능합니다. 본 “소프트웨어”는 저작권법과 기타 지적재산권 관련 법률 및 국제 협약에 의해 보호를 받고 있으며, 본 “소프트웨어＂를 개작하거나 리버스 엔지니어링, 디컴파일, 디스어셈블, 다른 소프트웨어의 일부분으로 포함하여 제작 할 수 없습니다. | F13: 본 “소프트웨어”는 xlworks.net에서 개발하고 배포하는 무료 소프트웨어(Freeware)입니다. 이 프로그램은 개인/기업/관공서/학교 등 언제나 어디서나 무료로 사용이 가능합니다. 본 “소프트웨어”는 저작권법과 기타 지적재산권 관련 법률 및 국제 협약에 의해 보호를 받고 있으며, 본 “소프트웨어＂를 개작하거나 리버스 엔지니어링, 디컴파일, 디스어셈블, 다른 소프트웨어의 일부분으로 포함하여 제작 할 수 없습니다.
B14: 101 | D14: From To | E14: Source필드 명 Target필드 명 | F14: Source필드 명 Target필드 명
B15: 102 | D15: Field Name Example | E15: 필드 명 값 예시 | F15: 필드 명 값 예시
B16: 103 | D16: Field Name Field Value | E16: 필드 명 필드 값 | F16: 필드 명 필드 값
B17: 104 | D17: Mapped | E17: Mapping된 상태 | F17: Mapping된 상태
B18: 105 | D18: Setting nonworking days in the project calendar | E18: 프로젝트 휴무일 Calendar 설정 | F18: 프로젝트 휴무일 Calendar 설정
B19: 106 | D19: "%Work Complete" is invalid. Type a number between 0% and 100%. | E19: 실적진척율은 0~100% 범위만 입력가능합니다. | F19: 실적진척율은 0~100% 범위만 입력가능합니다.
B20: 107 | D20: "Outline level"(task Level) field. It displays the level of a task.Instead of "Outline level", you can use "WBS". | E20: 개요수준(작업Level)필드입니다. 작업의 Level을 표시합니다. 예를 들어 2 Level의 작업이면 숫자 2로 표시됩니다. 개요수준대신 WBS필드(1.3.2 등의 형식으로 표시)를 사용하기도 합니다. | F20: 개요수준(작업Level)필드입니다. 작업의 Level을 표시합니다. 예를 들어 2 Level의 작업이면 숫자 2로 표시됩니다. 개요수준대신 WBS필드(1.3.2 등의 형식으로 표시)를 사용하기도 합니다.
B21: 108 | D21: "WBS"(Work Breakdown Structure) field. It displays the level of a task. Instead of WBS, you can use "Outline level". | E21: WBS(Work Breakdown Structure) 필드입니다. 작업의 Level을 표시합니다. 1.3.2 등의 형식으로 표시됩니다. WBS대신 개요수준(작업Level)필드를 사용하기도 합니다. 예를 들어 2 Level의 작업이면 숫자 2로 표시됩니다. | F21: WBS(Work Breakdown Structure) 필드입니다. 작업의 Level을 표시합니다. 1.3.2 등의 형식으로 표시됩니다. WBS대신 개요수준(작업Level)필드를 사용하기도 합니다. 예를 들어 2 Level의 작업이면 숫자 2로 표시됩니다.
B22: 109 | D22: %Work Complete | E22: 실적진척율 | F22: 실적진척율
B23: 110 | D23: %Work Complete(B) | E23: 실적 진척율(B) | F23: 실적 진척율(B)
B24: 111 | D24: %Work Complete(C/A) | E24: 실적(C/A) | F24: 실적(C/A)
B25: 112 | C25: for import columun | D25: %Work__Complete | E25: 실적 | F25: 실적
B26: 113 | D26: %Work\nComplete | E26: 실적 | F26: 실적
B27: 114 | C27: for help sheet | D27: (Hidden sheet) Contains language-specific translations. | E27: (숨겨진 시트) 언어별 번역이 들어 있다. | F27: (숨겨진 시트) 언어별 번역이 들어 있다.
B28: 115 | D28: (Resources unspecified) | E28: (담당자미지정) | F28: (담당자미지정)
B29: 116 | D29: * Automactically calulated if you click the "Update Schedule" button | E29: * "스케줄업데이트" 버튼 클릭 시 아래 항목이 자동계산됩니다. | F29: * "스케줄업데이트" 버튼 클릭 시 아래 항목이 자동계산됩니다.
B30: 117 | D30: * Choose a language | E30: * 언어를 선택하세요 | F30: * 언어를 선택하세요
B31: 118 | D31: * Common Excel file, Not XLGantt file\n (First row is title,from second rows are contents)\n* You can import only one file at once. | E31: * XLGantt 파일이 아닌 Excel파일(1행은 제목, 2행부터 내용이 있는 파일)\n* 자료갯수 제한 없음\n* 한번에 한개의 파일만 처리됨 | F31: * XLGantt 파일이 아닌 Excel파일(1행은 제목, 2행부터 내용이 있는 파일)\n* 자료갯수 제한 없음\n* 한번에 한개의 파일만 처리됨
B32: 119 | D32: * This sheet shows you project progresses by months. | E32: * 월별로 프로젝트 진적율을 보여줍니다. | F32: * 월별로 프로젝트 진적율을 보여줍니다.
B33: 120 | D33: * This sheet shows you project progresses by weeks. | E33: * 주별로 프로젝트 진적율을 보여줍니다. | F33: * 주별로 프로젝트 진적율을 보여줍니다.
B34: 121 | D34: * This sheet shows you tasks, workloads, progresses(%Work complete), etc by resources. | E34: * 담당별로 투입된 Task와 총작업량, 계획작업량, 진척작업을 Man-day로 보여주고, 계획/실적 진행율을 보여줍니다. | F34: * 담당별로 투입된 Task와 총작업량, 계획작업량, 진척작업을 Man-day로 보여주고, 계획/실적 진행율을 보여줍니다.
B35: 122 | D35: * This sheet shows you workload allocations by resources. | E35: * 담당별 Workload를 보여줍니다. | F35: * 담당별 Workload를 보여줍니다.
B36: 123 | D36: * This sheet shows you workload allocations by weeks or months. | E36: * 주별 또는 월별 Workload를 보여줍니다. | F36: * 주별 또는 월별 Workload를 보여줍니다.
B37: 124 | D37: * This sheet shows you workload and %Work complete. | E37: * 프로젝트 작업량과 진척율을 보여줍니다. | F37: * 프로젝트 작업량과 진척율을 보여줍니다.
B38: 125 | D38: * You need to click the "Progress by Months" button to update the contents. | E38: * "진척율(월별)" 메뉴를 클릭해야 갱신됨 | F38: * "진척율(월별)" 메뉴를 클릭해야 갱신됨
B39: 126 | D39: * You need to click the "Progress by Weeks" button to update the contents. | E39: * "진척율(주별)" 메뉴를 클릭해야 갱신됨 | F39: * "진척율(주별)" 메뉴를 클릭해야 갱신됨
B40: 127 | D40: * You need to click the "Progresses by Resources" button to update contents. | E40: * "담당별진행율" 메뉴를 클릭해야 내용이 갱신됩니다. | F40: * "담당별진행율" 메뉴를 클릭해야 내용이 갱신됩니다.
B41: 128 | D41: * You need to click the "Workloads by Resources" button to update the contents. | E41: * "Workload(담당별)" 메뉴를 클릭해야 내용이 갱신됩니다. | F41: * "Workload(담당별)" 메뉴를 클릭해야 내용이 갱신됩니다.
B42: 129 | D42: * You need to click the "Workloads by Weeks" or "Workloads by Months" button to update the contents. | E42: * "Workload(주별)" 또는 "Workload(월별)" 메뉴를 클릭해야 내용이 갱신됩니다. | F42: * "Workload(주별)" 또는 "Workload(월별)" 메뉴를 클릭해야 내용이 갱신됩니다.
B43: 130 | D43: {} "Outlook Appointment(s)" have been added. | E43: Outlook일정이 {}건 등록되었습니다. | F43: Outlook일정이 {}건 등록되었습니다.
B44: 131 | D44: {} "Outlook Task(s)" have been added. | E44: Outlook작업이 {}건 등록되었습니다. | F44: Outlook작업이 {}건 등록되었습니다.
B45: 132 | D45: {} file does not exist. | E45: {} 파일이 존재하지 않습니다 | F45: {} 파일이 존재하지 않습니다
B46: 133 | D46: << Remove | E46: << 제거 | F46: << 제거
B47: 134 | D47: << Unmap | E47: << Mapping취소 | F47: << Mapping취소
B48: 135 | D48: 12/1/2018 | E48: 2018-12-01 | F48: 2018-12-01
B49: 136 | D49: 12/31/2018 | E49: 2018-12-31 | F49: 2018-12-31
B50: 137 | D50: About | E50: About | F50: About
B51: 138 | D51: Accumulated\nMan-Day | E51: 누적\nMan-Day | F51: 누적\nMan-Day
B52: 139 | C52: manual input | D52: Actual | E52: 실적 | F52: 실적
B53: 140 | D53: Actual %Complete is invalid. Enter a number only. Verify row {} of the source file. | E53: 실적진척율에 숫자가 아닌 값이 포함되어 있습니다. Import하는 파일의 {}행을 확인하세요. | F53: 실적진척율에 숫자가 아닌 값이 포함되어 있습니다. Import하는 파일의 {}행을 확인하세요.
B54: 141 | D54: Actual %Work Complete from the start date to the current date | E54: 현재날짜까지 실제로 진행된 진척율, WBS의 "실적진척율"의 전체 합계 진척율을 표시함 | F54: 현재날짜까지 실제로 진행된 진척율, WBS의 "실적진척율"의 전체 합계 진척율을 표시함
B55: 142 | D55: Actual Accumulated\nMan-Day | E55: 실제 누적\nMan-Day | F55: 실제 누적\nMan-Day
B56: 143 | C56: for importOnStartup | D56: Actual Finish | E56: 실제완료일 | F56: 실제완료일
B57: 144 | D57: Actual Finish Date | E57: 실제완료일자 | F57: 실제완료일자
B58: 145 | D58: Actual finish date field of a task. It must be in date format. | E58: 각 작업의 실제완료일(또는 실제종료일)을 표시합니다. 반드시 날짜 형식이어야 합니다. | F58: 각 작업의 실제완료일(또는 실제종료일)을 표시합니다. 반드시 날짜 형식이어야 합니다.
B59: 146 | D59: Actual finish date is invalid. | E59: 실제완료일의 날짜형식이 잘못되었습니다. | F59: 실제완료일의 날짜형식이 잘못되었습니다.
B60: 147 | D60: Actual finish date is invalid. Verify row {} of the source file. | E60: 실제완료일자에 날짜가 아닌 값이 포함되어 있습니다. Import하는 파일의 {}행을 확인하세요. | F60: 실제완료일자에 날짜가 아닌 값이 포함되어 있습니다. Import하는 파일의 {}행을 확인하세요.
B61: 148 | D61: Actual Man-Day | E61: 실제 Man-Day | F61: 실제 Man-Day
B62: 149 | D62: Actual Progress | E62: 실제진척율 | F62: 실제진척율
B63: 150 | D63: Actual progress rate(%Work Complete) field. | E63: 실제진척율 필드입니다. 현재까지 실제 진척된 작업량을 %로 표현합니다. | F63: 실제진척율 필드입니다. 현재까지 실제 진척된 작업량을 %로 표현합니다.
B64: 151 | C64: for importOnStartup | D64: Actual Start | E64: 실제시작일 | F64: 실제시작일
B65: 152 | D65: Actual Start Date | E65: 실제시작일자 | F65: 실제시작일자
B66: 153 | D66: Actual start date field of a task. It must be in date format. | E66: 각 작업의 실제시작일을 표시합니다. 반드시 날짜 형식이어야 합니다. | F66: 각 작업의 실제시작일을 표시합니다. 반드시 날짜 형식이어야 합니다.
B67: 154 | D67: Actual start date is invalid. | E67: 실제시작일의 날짜형식이 잘못되었습니다. | F67: 실제시작일의 날짜형식이 잘못되었습니다.
B68: 155 | D68: Actual start date is invalid. Verify row {} of the source file. | E68: 실제시작일자에 날짜가 아닌 값이 포함되어 있습니다. Import하는 파일의 {}행을 확인하세요. | F68: 실제시작일자에 날짜가 아닌 값이 포함되어 있습니다. Import하는 파일의 {}행을 확인하세요.
B69: 156 | C69: for importOnStartup | D69: Actual Total Duration | E69: 실제총기간 | F69: 실제총기간
B70: 157 | C70: for importOnStartup | D70: Actual Total Work | E70: 실제총작업량 | F70: 실제총작업량
B71: 158 | D71: Actual Total Work\nMan-day | E71: 실제 총작업량\nMan-day | F71: 실제 총작업량\nMan-day
B72: 159 | C72: for import columun | D72: Actual Total__Duration | E72: 실제 총기간__(전체 기간) | F72: 실제 총기간__(전체 기간)
B73: 160 | D73: Actual Total\nDuration | E73: 실제\n총기간 | F73: 실제\n총기간
B74: 161 | D74: Actual Total\nWork(Total\nManDay) | E74: 실제 총작업량\n(총ManDay, 가중치 감안) | F74: 실제 총작업량\n(총ManDay, 가중치 감안)
B75: 162 | D75: Actual Workload Accumulated(Man-Day) | E75: 실제작업량 누적(Man-Day) | F75: 실제작업량 누적(Man-Day)
B76: 163 | D76: Actual Workload Progress | E76: 실제작업량 진척율 | F76: 실제작업량 진척율
B77: 164 | D77: Actual Workload(Man-Day) | E77: 실제작업량(Man-Day) | F77: 실제작업량(Man-Day)
B78: 165 | C78: for import columun | D78: Actual__Finish | E78: 실제__완료일 | F78: 실제__완료일
B79: 166 | C79: for import columun | D79: Actual__Start | E79: 실제__시작일 | F79: 실제__시작일
B80: 167 | C80: for import columun | D80: Actual__Total Duration | E80: 실제__총기간 | F80: 실제__총기간
B81: 168 | C81: for import columun | D81: Actual__Total Work | E81: 실제__총작업량 | F81: 실제__총작업량
B82: 169 | D82: Actual\nFinish | E82: 실제\n완료일 | F82: 실제\n완료일
B83: 170 | D83: Actual\nStart | E83: 실제\n시작일 | F83: 실제\n시작일
B84: 171 | D84: Actual\nStart-Finish | E84: 실제 \n시작일-완료일 | F84: 실제 \n시작일-완료일
B85: 172 | D85: Actual\nTotal Duration | E85: 실제\n총기간 | F85: 실제\n총기간
B86: 173 | D86: Actual\nTotal Work | E86: 실제\n총작업량 | F86: 실제\n총작업량
B87: 174 | D87: Actually performed workload | E87: 실제 투입된 작업량 | F87: 실제 투입된 작업량
B88: 175 | D88: Actually Performed workload when managing schedule changes | E88: 일정변경 관리할 때 현재까지 실제로 투입된 작업기간을 표시함 | F88: 일정변경 관리할 때 현재까지 실제로 투입된 작업기간을 표시함
B89: 176 | D89: Actually performed workload when not managing schedule changes(Total Duration x %Work Complete) | E89: 일정변경관리 하지 않을 때 현재까지 실제로 진행된 작업기간을 표시함(총기간 x 총실적진행율) | F89: 일정변경관리 하지 않을 때 현재까지 실제로 진행된 작업기간을 표시함(총기간 x 총실적진행율)
B90: 177 | D90: Add >> | E90: 추가 >> | F90: 추가 >>
B91: 178 | D91: Add Languages | E91: 언어 추가 | F91: 언어 추가
B92: 179 | D92: Add to MS Outlook Calendar | E92: MS Outlook일정 등록 | F92: MS Outlook일정 등록
B93: 180 | D93: Add to MS Outlook Task | E93: MS Outlook작업 등록 | F93: MS Outlook작업 등록
B94: 181 | C94: for help sheet | D94: Adding Tasks to Microsoft Outlook Calendar | E94: Microsoft Outlook작업, 일정등록 | F94: Microsoft Outlook작업, 일정등록
B95: 182 | C95: for help sheet | D95: Adds tasks to the Outlook calendar(You must have Microsoft Outlook installed on your PC). | E95: 엑셀간트에서는 Schedule시트에 입력되어 있는 작업을 Microsoft Outlook에 작업이나 일정으로 등록할 수 있는 기능을 제공한다(단, PC에 Microsoft Outlook이 설치되어 있어야 한다). | F95: 엑셀간트에서는 Schedule시트에 입력되어 있는 작업을 Microsoft Outlook에 작업이나 일정으로 등록할 수 있는 기능을 제공한다(단, PC에 Microsoft Outlook이 설치되어 있어야 한다).
B96: 183 | D96: After turning off filtering, we'll proceed. | E96: 필터를 해제하고 작업을 진행합니다. | F96: 필터를 해제하고 작업을 진행합니다.
B97: 184 | D97: Ahead of schedule | E97: 계획대비 빠름 | F97: 계획대비 빠름
B98: 185 | D98: All tasks | E98: 전체 조회(필터 해제) | F98: 전체 조회(필터 해제)
B99: 186 | D99: An error occurred while checking for updates. Please try again \nError Message: {} | E99: 최신버전 확인 중 에러가 발생했습니다. 잠시 후 다시 시도하세요.\n에러메시지 : {} | F99: 최신버전 확인 중 에러가 발생했습니다. 잠시 후 다시 시도하세요.\n에러메시지 : {}
B100: 187 | D100: An error occurred while checking XLGantt cell formats. Please restart XLGantt. | E100: 서식check 중 에러가 발생하였습니다. XLGantt를 종료하고 다시 시작하십시오. | F100: 서식check 중 에러가 발생하였습니다. XLGantt를 종료하고 다시 시작하십시오.
B101: 188 | D101: An error occurred while processing. Please check the messages below. | E101: 처리 중 에러가 발생했습니다. 아래의 메시지를 확인하십시오. | F101: 처리 중 에러가 발생했습니다. 아래의 메시지를 확인하십시오.
B102: 189 | D102: Analysis | E102: 분석 | F102: 분석
B103: 190 | C103: for help sheet | D103: Analysis report | E103: 분석 리포트 | F103: 분석 리포트
B104: 191 | D104: Appearance | E104: 모양 | F104: 모양
B105: 192 | D105: Automatic | E105: 자동 | F105: 자동
B106: 193 | D106: Automatic Except for Data Tables | E106: 데이터 표만 수동 | F106: 데이터 표만 수동
B107: 194 | D107: Automatically defined | E107: 자동지정 | F107: 자동지정
B108: 195 | D108: Available Languages | E108: 추가 가능한 언어 | F108: 추가 가능한 언어
B109: 196 | D109: Bar chart Text Display Position | E109: Bar chart의 텍스트 표시 위치 | F109: Bar chart의 텍스트 표시 위치
B110: 197 | D110: Because the following task already has been added, XLGantt does not add it to "Outlook".\n\nTask Name : {1} \nDue Date : {2} | E110: 다음 작업은 이미 등록되어 있으므로 등록하지 않습니다.\n\n작업명 : {1} \n기한 : {2} | F110: 다음 작업은 이미 등록되어 있으므로 등록하지 않습니다.\n\n작업명 : {1} \n기한 : {2}
B111: 198 | D111: Because the following task already has been added, XLGantt does not add it to "Outlook".\n\nTask Name : {1} \nStart Date : {2} | E111: 다음 작업은 이미 등록되어 있으므로 등록하지 않습니다.\n\n작업명 : {1} \n시작일 : {2} | F111: 다음 작업은 이미 등록되어 있으므로 등록하지 않습니다.\n\n작업명 : {1} \n시작일 : {2}
B112: 199 | D112: Behind schedule | E112: 일정 지연 | F112: 일정 지연
B113: 200 | D113: blabla | E113: ... | F113: ...
B114: 201 | D114: Black & White | E114: 흑백 | F114: 흑백
B115: 202 | D115: By %Work Complete | E115: 완료율 | F115: 완료율
B116: 203 | D116: By Duration | E116: 기간 | F116: 기간
B117: 204 | D117: By Resource | E117: 담당 | F117: 담당
B118: 205 | D118: by Resource Allocation Ratio | E118: 자원배정비율로 계산 | F118: 자원배정비율로 계산
B119: 206 | D119: by Weight | E119: 가중치로 계산 | F119: 가중치로 계산
B120: 207 | D120: Calculation Base Date of Planned %Work Complete | E120: 계획진척율 계산 기준일자 | F120: 계획진척율 계산 기준일자
B121: 208 | D121: Calculation Base Date of Planned %Work Complete must be greater than or equal to project start date. | E121: 계획진척율 계산 기준일자는 프로젝트 시작일보다 크거나 같아야 합니다. | F121: 계획진척율 계산 기준일자는 프로젝트 시작일보다 크거나 같아야 합니다.
B122: 209 | D122: Calculation Base Date of Planned %Work Complete must be less than or equal to project finish date. | E122: 계획진척율 계산 기준일자는 프로젝트 완료일보다 작거나 같아야 합니다. | F122: 계획진척율 계산 기준일자는 프로젝트 완료일보다 작거나 같아야 합니다.
B123: 210 | D123: Calculation Options | E123: 계산 옵션 | F123: 계산 옵션
B124: 211 | D124: Calendar | E124: Calendar | F124: Calendar
B125: 212 | D125: Cancel | E125: 취소 | F125: 취소
B126: 213 | D126: Chart | E126: 차트 | F126: 차트
B127: 214 | D127: Check for Updates | E127: 최신버전\n확인 | F127: 최신버전\n확인
B128: 215 | D128: Check for Updates on Startup | E128: 프로그램 시작 시 최신버전 확인 | F128: 프로그램 시작 시 최신버전 확인
B129: 216 | D129: Check if you save deliverables in specific directory | E129: 산출물 관리를 할 경우에 체크하세요 | F129: 산출물 관리를 할 경우에 체크하세요
B130: 217 | D130: Choose a file type to import | E130: 가져올 파일 종류 선택 | F130: 가져올 파일 종류 선택
B131: 218 | D131: Choose a language used in XLGantt | E131: XLGantt에서 사용할 언어 선택 | F131: XLGantt에서 사용할 언어 선택
B132: 219 | D132: Choose a language used in XLGantt. | E132: XLGantt에서 사용할 언어를 선택하세요. | F132: XLGantt에서 사용할 언어를 선택하세요.
B133: 220 | D133: Choose a language. | E133: 언어를 선택하세요 | F133: 언어를 선택하세요
B134: 221 | D134: Choose an import option. | E134: 가져오기 옵션을 선택하세요. | F134: 가져오기 옵션을 선택하세요.
B135: 222 | D135: Choose directly | E135: 컴퓨터 O/S와 관계없이 직접 선택 | F135: 컴퓨터 O/S와 관계없이 직접 선택
B136: 223 | D136: Choose the Type of Deliverables | E136: 산출물 종류를 선택하세요 | F136: 산출물 종류를 선택하세요
B137: 224 | C137: for importOnStartup | D137: Choose what to do after Importing Server Data | E137: 서버데이터 가져온 후 수행할 작업 선택 | F137: 서버데이터 가져온 후 수행할 작업 선택
B138: 225 | D138: Close | E138: 닫기 | F138: 닫기
B139: 226 | D139: Color Theme | E139: 컬러 테마 | F139: 컬러 테마
B140: 227 | D140: Completed(=100%) | E140: 완료 | F140: 완료
B141: 228 | D141: Contains | E141: 포함 | F141: 포함
B142: 229 | D142: Create Workload Data by Months | E142: Workload Data생성(월별) | F142: Workload Data생성(월별)
B143: 230 | D143: Create Workload Data by Weeks | E143: Workload Data생성(주별) | F143: Workload Data생성(주별)
B144: 231 | D144: Current Version | E144: 현재 사용중인 버전 | F144: 현재 사용중인 버전
B145: 232 | D145: Custom | E145: 사용자 정의 | F145: 사용자 정의
B146: 233 | D146: Daily | E146: 일별 | F146: 일별
B147: 234 | D147: Daily view | E147: 일별보기 | F147: 일별보기
B148: 235 | D148: Days (Average number of working days per month) | E148: 일 (월평균 근무일수) | F148: 일 (월평균 근무일수)
B149: 236 | D149: Days counted as Nonworking days | E149: 휴무일로 계산되는 날 | F149: 휴무일로 계산되는 날
B150: 237 | D150: Default | E150: 기본 | F150: 기본
B151: 238 | D151: Deliverables | E151: 산출물 | F151: 산출물
B152: 239 | D152: Deliverables field. | E152: 산출물 필드입니다. | F152: 산출물 필드입니다.
B153: 240 | D153: Deliverables type is not selected | E153: 산출물 종류가 선택되지 않았습니다 | F153: 산출물 종류가 선택되지 않았습니다
B154: 241 | D154: Display % Work Complete | E154: 실적진척율 표시 | F154: 실적진척율 표시
B155: 242 | D155: Display date | E155: 날짜 표시 | F155: 날짜 표시
B156: 243 | D156: Display date on the timescale | E156: 간트차트 눈금에 날짜 표시 | F156: 간트차트 눈금에 날짜 표시
B157: 244 | D157: Display font color to gray for the completed tasks | E157: 완료된 작업의 폰트색상 회색표시 | F157: 완료된 작업의 폰트색상 회색표시
B158: 245 | D158: Display interior color to gray for the task groups | E158: 작업그룹의 배경색 회색표시 | F158: 작업그룹의 배경색 회색표시
B159: 246 | D159: Display Planned %Work Complete | E159: 계획진척율 표시 | F159: 계획진척율 표시
B160: 247 | D160: Display project week number on the timescale | E160: 간트차트 눈금에 프로젝트 주차 표시 | F160: 간트차트 눈금에 프로젝트 주차 표시
B161: 248 | D161: Display resource | E161: 담당 표시 | F161: 담당 표시
B162: 249 | D162: Display task name | E162: 작업명 표시 | F162: 작업명 표시
B163: 250 | D163: Display the task name in the same field | E163: 같은 필드에 작업명 표시 | F163: 같은 필드에 작업명 표시
B164: 251 | D164: Display the total workload of the project | E164: 프로젝트 전체의 작업량을 Man/Day로 표시한다. 가중치를 적용한 값이다. | F164: 프로젝트 전체의 작업량을 Man/Day로 표시한다. 가중치를 적용한 값이다.
B165: 252 | D165: Display year on the timescale | E165: 간트차트 눈금에 년도 표시 | F165: 간트차트 눈금에 년도 표시
B166: 253 | D166: Displayed in %Work complete column | E166: 실적 열에 표시됨 | F166: 실적 열에 표시됨
B167: 254 | D167: Displays the task name in the different field for each level | E167: Level별로 다른 필드에 작업명 표시 | F167: Level별로 다른 필드에 작업명 표시
B168: 255 | C168: for importOnStartup | D168: Do not recalculate WBS area after import | E168: 가져오기 후 WBS영역 재계산 안함 | F168: 가져오기 후 WBS영역 재계산 안함
B169: 256 | D169: Download the latest version | E169: 프로그램 최신버전 다운로드 | F169: 프로그램 최신버전 다운로드
B170: 257 | D170: Drawing Gantt chart | E170: Gantt chart 그리기 작업 | F170: Gantt chart 그리기 작업
B171: 258 | D171: Drawing progress line | E171: 진척율선 그리기 | F171: 진척율선 그리기
B172: 259 | D172: Duration | E172: 기간 지정 | F172: 기간 지정
B173: 260 | D173: Earned Value Accumulated(Man-Day) | E173: 실적기성 누적(Man-Day) | F173: 실적기성 누적(Man-Day)
B174: 261 | D174: Earned value on planned schedule | E174: 실적기성 | F174: 실적기성
B175: 262 | D175: Earned value on planned schedule when managing schedule changes(Total Duration x %Work Complete) | E175: 일정변경관리 할때 실적기성(총기간 x 총실적진행율) | F175: 일정변경관리 할때 실적기성(총기간 x 총실적진행율)
B176: 263 | D176: Earned value on planned schedule(Total Duration x %Work Complete) | E176: 실적기성(총기간 x 총실적진행율) | F176: 실적기성(총기간 x 총실적진행율)
B177: 264 | D177: Earned Value Progress | E177: 실적기성 진척율 | F177: 실적기성 진척율
B178: 265 | D178: Earned Value(C)\nMan-day | E178: 실적기성( C )\nMan-day | F178: 실적기성( C )\nMan-day
B179: 266 | D179: Earned Value(Man-Day) | E179: 실적기성(Man-Day) | F179: 실적기성(Man-Day)
B180: 267 | D180: Edit a Task | E180: 작업 정보 | F180: 작업 정보
B181: 268 | D181: Elsa,John[50%] | E181: 홍길동,김길동[50%] | F181: 홍길동,김길동[50%]
B182: 269 | D182: Enabled Languages | E182: 사용할 수 있는 언어 | F182: 사용할 수 있는 언어
B183: 270 | D183: Equals | E183: 같음 | F183: 같음
B184: 271 | D184: Error! Calculated Total Man-Day is different from the Total Man-Day of the {} sheet. | E184: 오류! 계산된 Total Man-Day가 {} sheet의 Total Man-Day와 다릅니다. | F184: 오류! 계산된 Total Man-Day가 {} sheet의 Total Man-Day와 다릅니다.
B185: 272 | D185: Error! Cause may be one of the following.\n * File is invalid(e.g. the XLGantt file corrupted)\n * Not XLGantt file but General Excel file\n\n Please check the messages below for details. | E185: 작업 중 에러가 발생했습니다. 원인은 다음 중 하나일 수 있습니다.\n - 파일이 비정상적인 경우(XLGantt파일이 손상된 경우 등)\n - XLGantt 파일이 아닌 일반 엑셀파일인 경우\n\n 자세한 원인은 아래의 메시지를 확인하시기 바랍니다. | F185: 작업 중 에러가 발생했습니다. 원인은 다음 중 하나일 수 있습니다.\n - 파일이 비정상적인 경우(XLGantt파일이 손상된 경우 등)\n - XLGantt 파일이 아닌 일반 엑셀파일인 경우\n\n 자세한 원인은 아래의 메시지를 확인하시기 바랍니다.
B186: 273 | D186: Error, Invalid field specified. | E186: 오류, 지정할 수 없는 필드가 있습니다 | F186: 오류, 지정할 수 없는 필드가 있습니다
B187: 274 | D187: Etc | E187: 기타 | F187: 기타
B188: 275 | D188: Excel | E188: 엑셀 | F188: 엑셀
B189: 276 | D189: Execution path of Program | E189: 프로그램 실행경로 | F189: 프로그램 실행경로
B190: 277 | D190: Extension | E190: 확장자명 | F190: 확장자명
B191: 278 | D191: Filter | E191: 필터 적용 | F191: 필터 적용
B192: 279 | D192: Filter Task | E192: 작업 필터 | F192: 작업 필터
B193: 280 | D193: Finish | E193: 완료일 | F193: 완료일
B194: 281 | D194: Finish Date | E194: 완료일자 | F194: 완료일자
B195: 282 | D195: Finish date field of a task. It must be in date format. | E195: 각 작업의 완료일(또는 종료일)을 표시합니다. 반드시 날짜 형식이어야 합니다. | F195: 각 작업의 완료일(또는 종료일)을 표시합니다. 반드시 날짜 형식이어야 합니다.
B196: 283 | D196: Finish date is invalid. | E196: 작업완료일의 날짜형식이 잘못되었습니다. | F196: 작업완료일의 날짜형식이 잘못되었습니다.
B197: 284 | D197: Finish date is invalid. Verify row {} of the source file. | E197: 완료일자에 날짜가 아닌 값이 포함되어 있습니다. Import하는 파일의 {}행을 확인하세요. | F197: 완료일자에 날짜가 아닌 값이 포함되어 있습니다. Import하는 파일의 {}행을 확인하세요.
B198: 285 | D198: First day of week | E198: 한주의 시작요일 | F198: 한주의 시작요일
B199: 286 | D199: Follow the language setting of your computer O/S | E199: 컴퓨터 O/S의 언어설정을 따름 | F199: 컴퓨터 O/S의 언어설정을 따름
B200: 287 | D200: Fri | E200: 금 | F200: 금
... 383 more rows

Sheet Workload
A1: wbsLevel | B1: wbs | C1: wbsLevel01 | D1: wbsLevel02 | E1: wbsLevel03 | F1: wbsLevel04 | G1: wbsLevel05 | H1: wbsLevel06 | I1: wbsLevel07 | J1: wbsLevel08 | K1: wbsLevel09 | L1: wbsLevel10 | M1: task | N1: resource | O1: start | P1: finish | Q1: timebucketStart | R1: timebucketFinish | S1: weekNumber | T1: projectWeekNumber | U1: totalWorkload | V1: planWorkload | W1: resourceWeight | X1: resourceAssignRate | Y1: planRate | Z1: actualRate | AA1: actualStart | AB1: actualFinish | AC1: earnedValue | AD1: actualWorkload
A2: 3 | B2: 1.1.1 | C2: 1 | D2: 1.1 | E2: 1.1.1 | M2: 프로젝트 착수 | N2: 이지은 | O2: 2021-05-20 | P2: 2021-05-21 | Q2: 2021-05-20 | R2: 2021-05-22 | S2: 21 | T2: 1 | U2: 2 | V2: 2 | W2: 0 | X2: 1 | Y2: 1 | Z2: 1 | AC2: 0
A3: 3 | B3: 1.1.1 | C3: 1 | D3: 1.1 | E3: 1.1.1 | M3: 프로젝트 착수 | N3: 김분석 | O3: 2021-05-20 | P3: 2021-05-21 | Q3: 2021-05-20 | R3: 2021-05-22 | S3: 21 | T3: 1 | U3: 2 | V3: 2 | W3: 0 | X3: 1 | Y3: 1 | Z3: 1 | AC3: 0
A4: 4 | B4: 1.1.2.1 | C4: 1 | D4: 1.1 | E4: 1.1.2 | F4: 1.1.2.1 | M4: 프로젝트 계획 수립 | N4: 이지은 | O4: 2021-05-24 | P4: 2021-05-30 | Q4: 2021-05-20 | R4: 2021-05-22 | S4: 21 | T4: 1 | U4: 0 | V4: 0 | W4: 0 | X4: 1 | Y4: 1 | Z4: 0.9 | AC4: 0
A5: 4 | B5: 1.1.2.1 | C5: 1 | D5: 1.1 | E5: 1.1.2 | F5: 1.1.2.1 | M5: 프로젝트 계획 수립 | N5: 이지은 | O5: 2021-05-24 | P5: 2021-05-30 | Q5: 2021-05-23 | R5: 2021-05-29 | S5: 22 | T5: 2 | U5: 5 | V5: 5 | W5: 0 | X5: 1 | Y5: 1 | Z5: 0.9 | AC5: 0
A6: 4 | B6: 1.1.2.1 | C6: 1 | D6: 1.1 | E6: 1.1.2 | F6: 1.1.2.1 | M6: 프로젝트 계획 수립 | N6: 이지은 | O6: 2021-05-24 | P6: 2021-05-30 | Q6: 2021-05-30 | R6: 2021-06-05 | S6: 23 | T6: 3 | U6: 0 | V6: 0 | W6: 0 | X6: 1 | Y6: 1 | Z6: 0.9 | AC6: 0
A7: 4 | B7: 1.1.2.2 | C7: 1 | D7: 1.1 | E7: 1.1.2 | F7: 1.1.2.2 | M7: 착수보고(Kick off) | N7: 이지은 | O7: 2021-06-11 | P7: 2021-06-11 | Q7: 2021-06-06 | R7: 2021-06-12 | S7: 24 | T7: 4 | U7: 0 | V7: 0 | W7: 0 | X7: 0 | Y7: 0 | Z7: 0 | AC7: 0
A8: 3 | B8: 1.2.1 | C8: 1 | D8: 1.2 | E8: 1.2.1 | M8: 월간보고1 | N8: 박피엠 | O8: 2021-06-14 | P8: 2021-06-18 | Q8: 2021-05-20 | R8: 2021-05-22 | S8: 21 | T8: 1 | U8: 0 | V8: 0 | W8: 0 | X8: 0.2 | Y8: 0 | Z8: 0.5 | AC8: 0
A9: 3 | B9: 1.2.1 | C9: 1 | D9: 1.2 | E9: 1.2.1 | M9: 월간보고1 | N9: 박피엠 | O9: 2021-06-14 | P9: 2021-06-18 | Q9: 2021-05-23 | R9: 2021-05-29 | S9: 22 | T9: 2 | U9: 0 | V9: 0 | W9: 0 | X9: 0.2 | Y9: 0 | Z9: 0.5 | AC9: 0
A10: 3 | B10: 1.2.1 | C10: 1 | D10: 1.2 | E10: 1.2.1 | M10: 월간보고1 | N10: 박피엠 | O10: 2021-06-14 | P10: 2021-06-18 | Q10: 2021-05-30 | R10: 2021-06-05 | S10: 23 | T10: 3 | U10: 0 | V10: 0 | W10: 0 | X10: 0.2 | Y10: 0 | Z10: 0.5 | AC10: 0
A11: 3 | B11: 1.2.1 | C11: 1 | D11: 1.2 | E11: 1.2.1 | M11: 월간보고1 | N11: 박피엠 | O11: 2021-06-14 | P11: 2021-06-18 | Q11: 2021-06-06 | R11: 2021-06-12 | S11: 24 | T11: 4 | U11: 0 | V11: 0 | W11: 0 | X11: 0.2 | Y11: 0 | Z11: 0.5 | AC11: 0
A12: 3 | B12: 1.2.1 | C12: 1 | D12: 1.2 | E12: 1.2.1 | M12: 월간보고1 | N12: 박피엠 | O12: 2021-06-14 | P12: 2021-06-18 | Q12: 2021-06-13 | R12: 2021-06-19 | S12: 25 | T12: 5 | U12: 1 | V12: 0 | W12: 0 | X12: 0.2 | Y12: 0 | Z12: 0.5 | AC12: 0
A13: 3 | B13: 1.2.2 | C13: 1 | D13: 1.2 | E13: 1.2.2 | M13: 월간보고2 | N13: 박피엠 | O13: 2021-07-16 | P13: 2021-07-16 | Q13: 2021-07-11 | R13: 2021-07-17 | S13: 29 | T13: 9 | U13: 0.2 | V13: 0 | W13: 0 | X13: 0.2 | Y13: 0 | Z13: 0 | AC13: 0
A14: 3 | B14: 1.2.3 | C14: 1 | D14: 1.2 | E14: 1.2.3 | M14: 월간보고3 | N14: 박피엠 | O14: 2021-08-21 | P14: 2021-09-15 | Q14: 2021-08-15 | R14: 2021-08-21 | S14: 34 | T14: 14 | U14: 0 | V14: 0 | W14: 0 | X14: 0.2 | Y14: 0 | Z14: 0 | AC14: 0
A15: 3 | B15: 1.2.3 | C15: 1 | D15: 1.2 | E15: 1.2.3 | M15: 월간보고3 | N15: 박피엠 | O15: 2021-08-21 | P15: 2021-09-15 | Q15: 2021-08-22 | R15: 2021-08-28 | S15: 35 | T15: 15 | U15: 1 | V15: 0 | W15: 0 | X15: 0.2 | Y15: 0 | Z15: 0 | AC15: 0
A16: 3 | B16: 1.2.3 | C16: 1 | D16: 1.2 | E16: 1.2.3 | M16: 월간보고3 | N16: 박피엠 | O16: 2021-08-21 | P16: 2021-09-15 | Q16: 2021-08-29 | R16: 2021-09-04 | S16: 36 | T16: 16 | U16: 1 | V16: 0 | W16: 0 | X16: 0.2 | Y16: 0 | Z16: 0 | AC16: 0
A17: 3 | B17: 1.2.3 | C17: 1 | D17: 1.2 | E17: 1.2.3 | M17: 월간보고3 | N17: 박피엠 | O17: 2021-08-21 | P17: 2021-09-15 | Q17: 2021-09-05 | R17: 2021-09-11 | S17: 37 | T17: 17 | U17: 1 | V17: 0 | W17: 0 | X17: 0.2 | Y17: 0 | Z17: 0 | AC17: 0
A18: 3 | B18: 1.2.3 | C18: 1 | D18: 1.2 | E18: 1.2.3 | M18: 월간보고3 | N18: 박피엠 | O18: 2021-08-21 | P18: 2021-09-15 | Q18: 2021-09-12 | R18: 2021-09-18 | S18: 38 | T18: 18 | U18: 0.6 | V18: 0 | W18: 0 | X18: 0.2 | Y18: 0 | Z18: 0 | AC18: 0
A19: 3 | B19: 1.2.4 | C19: 1 | D19: 1.2 | E19: 1.2.4 | M19: 중간보고 | N19: (담당자미지정) | O19: 2021-06-11 | P19: 2021-06-11 | Q19: 2021-06-06 | R19: 2021-06-12 | S19: 24 | T19: 4 | U19: 1 | V19: 0 | W19: 0 | X19: 1 | Y19: 0 | Z19: 0 | AC19: 0
A20: 3 | B20: 1.3.1 | C20: 1 | D20: 1.3 | E20: 1.3.1 | M20: 종료계획수립 | N20: 김분석 | O20: 2021-09-23 | P20: 2021-09-27 | Q20: 2021-09-19 | R20: 2021-09-25 | S20: 39 | T20: 19 | U20: 2 | V20: 0 | W20: 0 | X20: 1 | Y20: 0 | Z20: 0 | AC20: 0
A21: 3 | B21: 1.3.1 | C21: 1 | D21: 1.3 | E21: 1.3.1 | M21: 종료계획수립 | N21: 이지은 | O21: 2021-09-23 | P21: 2021-09-27 | Q21: 2021-09-19 | R21: 2021-09-25 | S21: 39 | T21: 19 | U21: 2 | V21: 0 | W21: 0 | X21: 1 | Y21: 0 | Z21: 0 | AC21: 0
A22: 3 | B22: 1.3.1 | C22: 1 | D22: 1.3 | E22: 1.3.1 | M22: 종료계획수립 | N22: 김분석 | O22: 2021-09-23 | P22: 2021-09-27 | Q22: 2021-09-26 | R22: 2021-10-02 | S22: 40 | T22: 20 | U22: 1 | V22: 0 | W22: 0 | X22: 1 | Y22: 0 | Z22: 0 | AC22: 0
A23: 3 | B23: 1.3.1 | C23: 1 | D23: 1.3 | E23: 1.3.1 | M23: 종료계획수립 | N23: 이지은 | O23: 2021-09-23 | P23: 2021-09-27 | Q23: 2021-09-26 | R23: 2021-10-02 | S23: 40 | T23: 20 | U23: 1 | V23: 0 | W23: 0 | X23: 1 | Y23: 0 | Z23: 0 | AC23: 0
A24: 3 | B24: 1.3.2 | C24: 1 | D24: 1.3 | E24: 1.3.2 | M24: 시스템 인수인계 | N24: 홍길동 | O24: 2021-09-30 | P24: 2021-10-18 | Q24: 2021-09-26 | R24: 2021-10-02 | S24: 40 | T24: 20 | U24: 2 | V24: 0 | W24: 0 | X24: 1 | Y24: 0 | Z24: 0 | AC24: 0
A25: 3 | B25: 1.3.2 | C25: 1 | D25: 1.3 | E25: 1.3.2 | M25: 시스템 인수인계 | N25: 홍길동 | O25: 2021-09-30 | P25: 2021-10-18 | Q25: 2021-10-03 | R25: 2021-10-09 | S25: 41 | T25: 21 | U25: 5 | V25: 0 | W25: 0 | X25: 1 | Y25: 0 | Z25: 0 | AC25: 0
A26: 3 | B26: 1.3.2 | C26: 1 | D26: 1.3 | E26: 1.3.2 | M26: 시스템 인수인계 | N26: 홍길동 | O26: 2021-09-30 | P26: 2021-10-18 | Q26: 2021-10-10 | R26: 2021-10-16 | S26: 42 | T26: 22 | U26: 5 | V26: 0 | W26: 0 | X26: 1 | Y26: 0 | Z26: 0 | AC26: 0
A27: 3 | B27: 1.3.2 | C27: 1 | D27: 1.3 | E27: 1.3.2 | M27: 시스템 인수인계 | N27: 홍길동 | O27: 2021-09-30 | P27: 2021-10-18 | Q27: 2021-10-17 | R27: 2021-10-23 | S27: 43 | T27: 23 | U27: 1 | V27: 0 | W27: 0 | X27: 1 | Y27: 0 | Z27: 0 | AC27: 0
A28: 3 | B28: 1.3.3 | C28: 1 | D28: 1.3 | E28: 1.3.3 | M28: 종료보고 | N28: 나고객 | O28: 2021-10-18 | P28: 2021-10-18 | Q28: 2021-10-17 | R28: 2021-10-23 | S28: 43 | T28: 23 | U28: 1 | V28: 0 | W28: 0 | X28: 1 | Y28: 0 | Z28: 0 | AC28: 0
A29: 3 | B29: 1.3.3 | C29: 1 | D29: 1.3 | E29: 1.3.3 | M29: 종료보고 | N29: 이고객 | O29: 2021-10-18 | P29: 2021-10-18 | Q29: 2021-10-17 | R29: 2021-10-23 | S29: 43 | T29: 23 | U29: 1 | V29: 0 | W29: 0 | X29: 1 | Y29: 0 | Z29: 0 | AC29: 0
A30: 3 | B30: 1.3.4 | C30: 1 | D30: 1.3 | E30: 1.3.4 | M30: 검수 및 종료 | N30: (담당자미지정) | O30: 2021-10-18 | P30: 2021-10-18 | Q30: 2021-10-17 | R30: 2021-10-23 | S30: 43 | T30: 23 | U30: 0 | V30: 0 | W30: 0 | X30: 0 | Y30: 0 | Z30: 0 | AC30: 0
A31: 3 | B31: 2.1.1 | C31: 2 | D31: 2.1 | E31: 2.1.1 | M31: 요구사항정의 | N31: (담당자미지정) | O31: 2021-05-24 | P31: 2021-06-11 | Q31: 2021-05-20 | R31: 2021-05-22 | S31: 21 | T31: 1 | U31: 0 | V31: 0 | W31: 0 | X31: 1 | Y31: 0.4666666667 | Z31: 1 | AC31: 0
A32: 3 | B32: 2.1.1 | C32: 2 | D32: 2.1 | E32: 2.1.1 | M32: 요구사항정의 | N32: (담당자미지정) | O32: 2021-05-24 | P32: 2021-06-11 | Q32: 2021-05-23 | R32: 2021-05-29 | S32: 22 | T32: 2 | U32: 5 | V32: 5 | W32: 0 | X32: 1 | Y32: 0.4666666667 | Z32: 1 | AC32: 0
A33: 3 | B33: 2.1.1 | C33: 2 | D33: 2.1 | E33: 2.1.1 | M33: 요구사항정의 | N33: (담당자미지정) | O33: 2021-05-24 | P33: 2021-06-11 | Q33: 2021-05-30 | R33: 2021-06-05 | S33: 23 | T33: 3 | U33: 5 | V33: 2 | W33: 0 | X33: 1 | Y33: 0.4666666667 | Z33: 1 | AC33: 0
A34: 3 | B34: 2.1.1 | C34: 2 | D34: 2.1 | E34: 2.1.1 | M34: 요구사항정의 | N34: (담당자미지정) | O34: 2021-05-24 | P34: 2021-06-11 | Q34: 2021-06-06 | R34: 2021-06-12 | S34: 24 | T34: 4 | U34: 5 | V34: 0 | W34: 0 | X34: 1 | Y34: 0.4666666667 | Z34: 1 | AC34: 0
A35: 4 | B35: 2.1.2.1 | C35: 2 | D35: 2.1 | E35: 2.1.2 | F35: 2.1.2.1 | M35: 프로세스모델링 | N35: (담당자미지정) | O35: 2021-05-30 | P35: 2021-06-10 | Q35: 2021-05-20 | R35: 2021-05-22 | S35: 21 | T35: 1 | U35: 0 | V35: 0 | W35: 0 | X35: 1 | Y35: 0.2222222222 | Z35: 0.2 | AC35: 0
A36: 4 | B36: 2.1.2.1 | C36: 2 | D36: 2.1 | E36: 2.1.2 | F36: 2.1.2.1 | M36: 프로세스모델링 | N36: (담당자미지정) | O36: 2021-05-30 | P36: 2021-06-10 | Q36: 2021-05-23 | R36: 2021-05-29 | S36: 22 | T36: 2 | U36: 0 | V36: 0 | W36: 0 | X36: 1 | Y36: 0.2222222222 | Z36: 0.2 | AC36: 0
A37: 4 | B37: 2.1.2.1 | C37: 2 | D37: 2.1 | E37: 2.1.2 | F37: 2.1.2.1 | M37: 프로세스모델링 | N37: (담당자미지정) | O37: 2021-05-30 | P37: 2021-06-10 | Q37: 2021-05-30 | R37: 2021-06-05 | S37: 23 | T37: 3 | U37: 5 | V37: 2 | W37: 0 | X37: 1 | Y37: 0.2222222222 | Z37: 0.2 | AC37: 0
A38: 4 | B38: 2.1.2.1 | C38: 2 | D38: 2.1 | E38: 2.1.2 | F38: 2.1.2.1 | M38: 프로세스모델링 | N38: (담당자미지정) | O38: 2021-05-30 | P38: 2021-06-10 | Q38: 2021-06-06 | R38: 2021-06-12 | S38: 24 | T38: 4 | U38: 4 | V38: 0 | W38: 0 | X38: 1 | Y38: 0.2222222222 | Z38: 0.2 | AC38: 0
A39: 4 | B39: 2.1.2.2 | C39: 2 | D39: 2.1 | E39: 2.1.2 | F39: 2.1.2.2 | M39: 데이터모델링 | N39: 박설계 | O39: 2021-05-30 | P39: 2021-06-10 | Q39: 2021-05-20 | R39: 2021-05-22 | S39: 21 | T39: 1 | U39: 0 | V39: 0 | W39: 0 | X39: 1.2 | Y39: 0.2222222222 | Z39: 0.15 | AC39: 0
A40: 4 | B40: 2.1.2.2 | C40: 2 | D40: 2.1 | E40: 2.1.2 | F40: 2.1.2.2 | M40: 데이터모델링 | N40: 이지은 | O40: 2021-05-30 | P40: 2021-06-10 | Q40: 2021-05-20 | R40: 2021-05-22 | S40: 21 | T40: 1 | U40: 0 | V40: 0 | W40: 0 | X40: 0.5 | Y40: 0.2222222222 | Z40: 0.15 | AC40: 0
A41: 4 | B41: 2.1.2.2 | C41: 2 | D41: 2.1 | E41: 2.1.2 | F41: 2.1.2.2 | M41: 데이터모델링 | N41: 박설계 | O41: 2021-05-30 | P41: 2021-06-10 | Q41: 2021-05-23 | R41: 2021-05-29 | S41: 22 | T41: 2 | U41: 0 | V41: 0 | W41: 0 | X41: 1.2 | Y41: 0.2222222222 | Z41: 0.15 | AC41: 0
A42: 4 | B42: 2.1.2.2 | C42: 2 | D42: 2.1 | E42: 2.1.2 | F42: 2.1.2.2 | M42: 데이터모델링 | N42: 이지은 | O42: 2021-05-30 | P42: 2021-06-10 | Q42: 2021-05-23 | R42: 2021-05-29 | S42: 22 | T42: 2 | U42: 0 | V42: 0 | W42: 0 | X42: 0.5 | Y42: 0.2222222222 | Z42: 0.15 | AC42: 0
A43: 4 | B43: 2.1.2.2 | C43: 2 | D43: 2.1 | E43: 2.1.2 | F43: 2.1.2.2 | M43: 데이터모델링 | N43: 박설계 | O43: 2021-05-30 | P43: 2021-06-10 | Q43: 2021-05-30 | R43: 2021-06-05 | S43: 23 | T43: 3 | U43: 6 | V43: 2.4 | W43: 0 | X43: 1.2 | Y43: 0.2222222222 | Z43: 0.15 | AC43: 0
A44: 4 | B44: 2.1.2.2 | C44: 2 | D44: 2.1 | E44: 2.1.2 | F44: 2.1.2.2 | M44: 데이터모델링 | N44: 이지은 | O44: 2021-05-30 | P44: 2021-06-10 | Q44: 2021-05-30 | R44: 2021-06-05 | S44: 23 | T44: 3 | U44: 2.5 | V44: 1 | W44: 0 | X44: 0.5 | Y44: 0.2222222222 | Z44: 0.15 | AC44: 0
A45: 4 | B45: 2.1.2.2 | C45: 2 | D45: 2.1 | E45: 2.1.2 | F45: 2.1.2.2 | M45: 데이터모델링 | N45: 박설계 | O45: 2021-05-30 | P45: 2021-06-10 | Q45: 2021-06-06 | R45: 2021-06-12 | S45: 24 | T45: 4 | U45: 4.8 | V45: 0 | W45: 0 | X45: 1.2 | Y45: 0.2222222222 | Z45: 0.15 | AC45: 0
A46: 4 | B46: 2.1.2.2 | C46: 2 | D46: 2.1 | E46: 2.1.2 | F46: 2.1.2.2 | M46: 데이터모델링 | N46: 이지은 | O46: 2021-05-30 | P46: 2021-06-10 | Q46: 2021-06-06 | R46: 2021-06-12 | S46: 24 | T46: 4 | U46: 2 | V46: 0 | W46: 0 | X46: 0.5 | Y46: 0.2222222222 | Z46: 0.15 | AC46: 0
A47: 3 | B47: 2.2.1 | C47: 2 | D47: 2.2 | E47: 2.2.1 | M47: UI 설계 | N47: (담당자미지정) | O47: 2021-06-13 | P47: 2021-07-01 | Q47: 2021-06-13 | R47: 2021-06-19 | S47: 25 | T47: 5 | U47: 5 | V47: 0 | W47: 0 | X47: 1 | Y47: 0 | Z47: 0 | AC47: 0
A48: 3 | B48: 2.2.1 | C48: 2 | D48: 2.2 | E48: 2.2.1 | M48: UI 설계 | N48: (담당자미지정) | O48: 2021-06-13 | P48: 2021-07-01 | Q48: 2021-06-20 | R48: 2021-06-26 | S48: 26 | T48: 6 | U48: 5 | V48: 0 | W48: 0 | X48: 1 | Y48: 0 | Z48: 0 | AC48: 0
A49: 3 | B49: 2.2.1 | C49: 2 | D49: 2.2 | E49: 2.2.1 | M49: UI 설계 | N49: (담당자미지정) | O49: 2021-06-13 | P49: 2021-07-01 | Q49: 2021-06-27 | R49: 2021-07-03 | S49: 27 | T49: 7 | U49: 4 | V49: 0 | W49: 0 | X49: 1 | Y49: 0 | Z49: 0 | AC49: 0
A50: 4 | B50: 2.2.2.1 | C50: 2 | D50: 2.2 | E50: 2.2.2 | F50: 2.2.2.1 | M50: Architecture설계 | N50: (담당자미지정) | O50: 2021-06-20 | P50: 2021-07-01 | Q50: 2021-06-20 | R50: 2021-06-26 | S50: 26 | T50: 6 | U50: 5 | V50: 0 | W50: 0 | X50: 1 | Y50: 0 | Z50: 0 | AC50: 0
A51: 4 | B51: 2.2.2.1 | C51: 2 | D51: 2.2 | E51: 2.2.2 | F51: 2.2.2.1 | M51: Architecture설계 | N51: (담당자미지정) | O51: 2021-06-20 | P51: 2021-07-01 | Q51: 2021-06-27 | R51: 2021-07-03 | S51: 27 | T51: 7 | U51: 4 | V51: 0 | W51: 0 | X51: 1 | Y51: 0 | Z51: 0 | AC51: 0
A52: 4 | B52: 2.2.2.2 | C52: 2 | D52: 2.2 | E52: 2.2.2 | F52: 2.2.2.2 | M52: 데이터베이스설계 | N52: (담당자미지정) | O52: 2021-06-27 | P52: 2021-07-08 | Q52: 2021-06-27 | R52: 2021-07-03 | S52: 27 | T52: 7 | U52: 5 | V52: 0 | W52: 0 | X52: 1 | Y52: 0 | Z52: 0 | AC52: 0
A53: 4 | B53: 2.2.2.2 | C53: 2 | D53: 2.2 | E53: 2.2.2 | F53: 2.2.2.2 | M53: 데이터베이스설계 | N53: (담당자미지정) | O53: 2021-06-27 | P53: 2021-07-08 | Q53: 2021-07-04 | R53: 2021-07-10 | S53: 28 | T53: 8 | U53: 4 | V53: 0 | W53: 0 | X53: 1 | Y53: 0 | Z53: 0 | AC53: 0
A54: 4 | B54: 2.2.2.3 | C54: 2 | D54: 2.2 | E54: 2.2.2 | F54: 2.2.2.3 | M54: 프로그램설계 | N54: (담당자미지정) | O54: 2021-06-27 | P54: 2021-07-15 | Q54: 2021-06-27 | R54: 2021-07-03 | S54: 27 | T54: 7 | U54: 5 | V54: 0 | W54: 0 | X54: 1 | Y54: 0 | Z54: 0 | AC54: 0
A55: 4 | B55: 2.2.2.3 | C55: 2 | D55: 2.2 | E55: 2.2.2 | F55: 2.2.2.3 | M55: 프로그램설계 | N55: (담당자미지정) | O55: 2021-06-27 | P55: 2021-07-15 | Q55: 2021-07-04 | R55: 2021-07-10 | S55: 28 | T55: 8 | U55: 5 | V55: 0 | W55: 0 | X55: 1 | Y55: 0 | Z55: 0 | AC55: 0
A56: 4 | B56: 2.2.2.3 | C56: 2 | D56: 2.2 | E56: 2.2.2 | F56: 2.2.2.3 | M56: 프로그램설계 | N56: (담당자미지정) | O56: 2021-06-27 | P56: 2021-07-15 | Q56: 2021-07-11 | R56: 2021-07-17 | S56: 29 | T56: 9 | U56: 4 | V56: 0 | W56: 0 | X56: 1 | Y56: 0 | Z56: 0 | AC56: 0
A57: 3 | B57: 2.2.3 | C57: 2 | D57: 2.2 | E57: 2.2.3 | M57: 테스트 설계 | N57: (담당자미지정) | O57: 2021-07-18 | P57: 2021-07-22 | Q57: 2021-07-18 | R57: 2021-07-24 | S57: 30 | T57: 10 | U57: 4 | V57: 0 | W57: 0 | X57: 1 | Y57: 0 | Z57: 0 | AC57: 0
A58: 4 | B58: 2.3.1.1 | C58: 2 | D58: 2.3 | E58: 2.3.1 | F58: 2.3.1.1 | M58: 단위테스트시나리오작성 | N58: (담당자미지정) | O58: 2021-07-18 | P58: 2021-07-22 | Q58: 2021-07-18 | R58: 2021-07-24 | S58: 30 | T58: 10 | U58: 4 | V58: 0 | W58: 0 | X58: 1 | Y58: 0 | Z58: 0 | AC58: 0
A59: 6 | B59: 2.3.1.2.1.1 | C59: 2 | D59: 2.3 | E59: 2.3.1 | F59: 2.3.1.2 | G59: 2.3.1.2.1 | H59: 2.3.1.2.1.1 | M59: 프로그램A | N59: (담당자미지정) | O59: 2021-07-18 | P59: 2021-07-22 | Q59: 2021-07-18 | R59: 2021-07-24 | S59: 30 | T59: 10 | U59: 4 | V59: 0 | W59: 0 | X59: 1 | Y59: 0 | Z59: 0 | AC59: 0
A60: 6 | B60: 2.3.1.2.1.2 | C60: 2 | D60: 2.3 | E60: 2.3.1 | F60: 2.3.1.2 | G60: 2.3.1.2.1 | H60: 2.3.1.2.1.2 | M60: 프로그램B | N60: (담당자미지정) | O60: 2021-07-25 | P60: 2021-07-29 | Q60: 2021-07-25 | R60: 2021-07-31 | S60: 31 | T60: 11 | U60: 4 | V60: 0 | W60: 0 | X60: 1 | Y60: 0 | Z60: 0 | AC60: 0
A61: 6 | B61: 2.3.1.2.1.3 | C61: 2 | D61: 2.3 | E61: 2.3.1 | F61: 2.3.1.2 | G61: 2.3.1.2.1 | H61: 2.3.1.2.1.3 | M61: 프로그램C | N61: (담당자미지정) | O61: 2021-07-25 | P61: 2021-08-05 | Q61: 2021-07-25 | R61: 2021-07-31 | S61: 31 | T61: 11 | U61: 5 | V61: 0 | W61: 0 | X61: 1 | Y61: 0 | Z61: 0 | AC61: 0
A62: 6 | B62: 2.3.1.2.1.3 | C62: 2 | D62: 2.3 | E62: 2.3.1 | F62: 2.3.1.2 | G62: 2.3.1.2.1 | H62: 2.3.1.2.1.3 | M62: 프로그램C | N62: (담당자미지정) | O62: 2021-07-25 | P62: 2021-08-05 | Q62: 2021-08-01 | R62: 2021-08-07 | S62: 32 | T62: 12 | U62: 4 | V62: 0 | W62: 0 | X62: 1 | Y62: 0 | Z62: 0 | AC62: 0
A63: 5 | B63: 2.3.1.2.2 | C63: 2 | D63: 2.3 | E63: 2.3.1 | F63: 2.3.1.2 | G63: 2.3.1.2.2 | M63: 모듈B | N63: (담당자미지정) | O63: 2021-07-18 | P63: 2021-09-15 | Q63: 2021-07-18 | R63: 2021-07-24 | S63: 30 | T63: 10 | U63: 5 | V63: 0 | W63: 0 | X63: 1 | Y63: 0 | Z63: 0 | AC63: 0
A64: 5 | B64: 2.3.1.2.2 | C64: 2 | D64: 2.3 | E64: 2.3.1 | F64: 2.3.1.2 | G64: 2.3.1.2.2 | M64: 모듈B | N64: (담당자미지정) | O64: 2021-07-18 | P64: 2021-09-15 | Q64: 2021-07-25 | R64: 2021-07-31 | S64: 31 | T64: 11 | U64: 5 | V64: 0 | W64: 0 | X64: 1 | Y64: 0 | Z64: 0 | AC64: 0
A65: 5 | B65: 2.3.1.2.2 | C65: 2 | D65: 2.3 | E65: 2.3.1 | F65: 2.3.1.2 | G65: 2.3.1.2.2 | M65: 모듈B | N65: (담당자미지정) | O65: 2021-07-18 | P65: 2021-09-15 | Q65: 2021-08-01 | R65: 2021-08-07 | S65: 32 | T65: 12 | U65: 5 | V65: 0 | W65: 0 | X65: 1 | Y65: 0 | Z65: 0 | AC65: 0
A66: 5 | B66: 2.3.1.2.2 | C66: 2 | D66: 2.3 | E66: 2.3.1 | F66: 2.3.1.2 | G66: 2.3.1.2.2 | M66: 모듈B | N66: (담당자미지정) | O66: 2021-07-18 | P66: 2021-09-15 | Q66: 2021-08-08 | R66: 2021-08-14 | S66: 33 | T66: 13 | U66: 5 | V66: 0 | W66: 0 | X66: 1 | Y66: 0 | Z66: 0 | AC66: 0
A67: 5 | B67: 2.3.1.2.2 | C67: 2 | D67: 2.3 | E67: 2.3.1 | F67: 2.3.1.2 | G67: 2.3.1.2.2 | M67: 모듈B | N67: (담당자미지정) | O67: 2021-07-18 | P67: 2021-09-15 | Q67: 2021-08-15 | R67: 2021-08-21 | S67: 34 | T67: 14 | U67: 5 | V67: 0 | W67: 0 | X67: 1 | Y67: 0 | Z67: 0 | AC67: 0
A68: 5 | B68: 2.3.1.2.2 | C68: 2 | D68: 2.3 | E68: 2.3.1 | F68: 2.3.1.2 | G68: 2.3.1.2.2 | M68: 모듈B | N68: (담당자미지정) | O68: 2021-07-18 | P68: 2021-09-15 | Q68: 2021-08-22 | R68: 2021-08-28 | S68: 35 | T68: 15 | U68: 5 | V68: 0 | W68: 0 | X68: 1 | Y68: 0 | Z68: 0 | AC68: 0
A69: 5 | B69: 2.3.1.2.2 | C69: 2 | D69: 2.3 | E69: 2.3.1 | F69: 2.3.1.2 | G69: 2.3.1.2.2 | M69: 모듈B | N69: (담당자미지정) | O69: 2021-07-18 | P69: 2021-09-15 | Q69: 2021-08-29 | R69: 2021-09-04 | S69: 36 | T69: 16 | U69: 5 | V69: 0 | W69: 0 | X69: 1 | Y69: 0 | Z69: 0 | AC69: 0
A70: 5 | B70: 2.3.1.2.2 | C70: 2 | D70: 2.3 | E70: 2.3.1 | F70: 2.3.1.2 | G70: 2.3.1.2.2 | M70: 모듈B | N70: (담당자미지정) | O70: 2021-07-18 | P70: 2021-09-15 | Q70: 2021-09-05 | R70: 2021-09-11 | S70: 37 | T70: 17 | U70: 5 | V70: 0 | W70: 0 | X70: 1 | Y70: 0 | Z70: 0 | AC70: 0
A71: 5 | B71: 2.3.1.2.2 | C71: 2 | D71: 2.3 | E71: 2.3.1 | F71: 2.3.1.2 | G71: 2.3.1.2.2 | M71: 모듈B | N71: (담당자미지정) | O71: 2021-07-18 | P71: 2021-09-15 | Q71: 2021-09-12 | R71: 2021-09-18 | S71: 38 | T71: 18 | U71: 3 | V71: 0 | W71: 0 | X71: 1 | Y71: 0 | Z71: 0 | AC71: 0
A72: 5 | B72: 2.3.1.2.3 | C72: 2 | D72: 2.3 | E72: 2.3.1 | F72: 2.3.1.2 | G72: 2.3.1.2.3 | M72: 모듈C | N72: (담당자미지정) | O72: 2021-07-18 | P72: 2021-09-15 | Q72: 2021-07-18 | R72: 2021-07-24 | S72: 30 | T72: 10 | U72: 5 | V72: 0 | W72: 0 | X72: 1 | Y72: 0 | Z72: 0 | AC72: 0
A73: 5 | B73: 2.3.1.2.3 | C73: 2 | D73: 2.3 | E73: 2.3.1 | F73: 2.3.1.2 | G73: 2.3.1.2.3 | M73: 모듈C | N73: (담당자미지정) | O73: 2021-07-18 | P73: 2021-09-15 | Q73: 2021-07-25 | R73: 2021-07-31 | S73: 31 | T73: 11 | U73: 5 | V73: 0 | W73: 0 | X73: 1 | Y73: 0 | Z73: 0 | AC73: 0
A74: 5 | B74: 2.3.1.2.3 | C74: 2 | D74: 2.3 | E74: 2.3.1 | F74: 2.3.1.2 | G74: 2.3.1.2.3 | M74: 모듈C | N74: (담당자미지정) | O74: 2021-07-18 | P74: 2021-09-15 | Q74: 2021-08-01 | R74: 2021-08-07 | S74: 32 | T74: 12 | U74: 5 | V74: 0 | W74: 0 | X74: 1 | Y74: 0 | Z74: 0 | AC74: 0
A75: 5 | B75: 2.3.1.2.3 | C75: 2 | D75: 2.3 | E75: 2.3.1 | F75: 2.3.1.2 | G75: 2.3.1.2.3 | M75: 모듈C | N75: (담당자미지정) | O75: 2021-07-18 | P75: 2021-09-15 | Q75: 2021-08-08 | R75: 2021-08-14 | S75: 33 | T75: 13 | U75: 5 | V75: 0 | W75: 0 | X75: 1 | Y75: 0 | Z75: 0 | AC75: 0
A76: 5 | B76: 2.3.1.2.3 | C76: 2 | D76: 2.3 | E76: 2.3.1 | F76: 2.3.1.2 | G76: 2.3.1.2.3 | M76: 모듈C | N76: (담당자미지정) | O76: 2021-07-18 | P76: 2021-09-15 | Q76: 2021-08-15 | R76: 2021-08-21 | S76: 34 | T76: 14 | U76: 5 | V76: 0 | W76: 0 | X76: 1 | Y76: 0 | Z76: 0 | AC76: 0
A77: 5 | B77: 2.3.1.2.3 | C77: 2 | D77: 2.3 | E77: 2.3.1 | F77: 2.3.1.2 | G77: 2.3.1.2.3 | M77: 모듈C | N77: (담당자미지정) | O77: 2021-07-18 | P77: 2021-09-15 | Q77: 2021-08-22 | R77: 2021-08-28 | S77: 35 | T77: 15 | U77: 5 | V77: 0 | W77: 0 | X77: 1 | Y77: 0 | Z77: 0 | AC77: 0
A78: 5 | B78: 2.3.1.2.3 | C78: 2 | D78: 2.3 | E78: 2.3.1 | F78: 2.3.1.2 | G78: 2.3.1.2.3 | M78: 모듈C | N78: (담당자미지정) | O78: 2021-07-18 | P78: 2021-09-15 | Q78: 2021-08-29 | R78: 2021-09-04 | S78: 36 | T78: 16 | U78: 5 | V78: 0 | W78: 0 | X78: 1 | Y78: 0 | Z78: 0 | AC78: 0
A79: 5 | B79: 2.3.1.2.3 | C79: 2 | D79: 2.3 | E79: 2.3.1 | F79: 2.3.1.2 | G79: 2.3.1.2.3 | M79: 모듈C | N79: (담당자미지정) | O79: 2021-07-18 | P79: 2021-09-15 | Q79: 2021-09-05 | R79: 2021-09-11 | S79: 37 | T79: 17 | U79: 5 | V79: 0 | W79: 0 | X79: 1 | Y79: 0 | Z79: 0 | AC79: 0
A80: 5 | B80: 2.3.1.2.3 | C80: 2 | D80: 2.3 | E80: 2.3.1 | F80: 2.3.1.2 | G80: 2.3.1.2.3 | M80: 모듈C | N80: (담당자미지정) | O80: 2021-07-18 | P80: 2021-09-15 | Q80: 2021-09-12 | R80: 2021-09-18 | S80: 38 | T80: 18 | U80: 3 | V80: 0 | W80: 0 | X80: 1 | Y80: 0 | Z80: 0 | AC80: 0
A81: 5 | B81: 2.3.1.2.4 | C81: 2 | D81: 2.3 | E81: 2.3.1 | F81: 2.3.1.2 | G81: 2.3.1.2.4 | M81: 모듈D | N81: (담당자미지정) | O81: 2021-08-01 | P81: 2021-09-15 | Q81: 2021-08-01 | R81: 2021-08-07 | S81: 32 | T81: 12 | U81: 5 | V81: 0 | W81: 0 | X81: 1 | Y81: 0 | Z81: 0 | AC81: 0
A82: 5 | B82: 2.3.1.2.4 | C82: 2 | D82: 2.3 | E82: 2.3.1 | F82: 2.3.1.2 | G82: 2.3.1.2.4 | M82: 모듈D | N82: (담당자미지정) | O82: 2021-08-01 | P82: 2021-09-15 | Q82: 2021-08-08 | R82: 2021-08-14 | S82: 33 | T82: 13 | U82: 5 | V82: 0 | W82: 0 | X82: 1 | Y82: 0 | Z82: 0 | AC82: 0
A83: 5 | B83: 2.3.1.2.4 | C83: 2 | D83: 2.3 | E83: 2.3.1 | F83: 2.3.1.2 | G83: 2.3.1.2.4 | M83: 모듈D | N83: (담당자미지정) | O83: 2021-08-01 | P83: 2021-09-15 | Q83: 2021-08-15 | R83: 2021-08-21 | S83: 34 | T83: 14 | U83: 5 | V83: 0 | W83: 0 | X83: 1 | Y83: 0 | Z83: 0 | AC83: 0
A84: 5 | B84: 2.3.1.2.4 | C84: 2 | D84: 2.3 | E84: 2.3.1 | F84: 2.3.1.2 | G84: 2.3.1.2.4 | M84: 모듈D | N84: (담당자미지정) | O84: 2021-08-01 | P84: 2021-09-15 | Q84: 2021-08-22 | R84: 2021-08-28 | S84: 35 | T84: 15 | U84: 5 | V84: 0 | W84: 0 | X84: 1 | Y84: 0 | Z84: 0 | AC84: 0
A85: 5 | B85: 2.3.1.2.4 | C85: 2 | D85: 2.3 | E85: 2.3.1 | F85: 2.3.1.2 | G85: 2.3.1.2.4 | M85: 모듈D | N85: (담당자미지정) | O85: 2021-08-01 | P85: 2021-09-15 | Q85: 2021-08-29 | R85: 2021-09-04 | S85: 36 | T85: 16 | U85: 5 | V85: 0 | W85: 0 | X85: 1 | Y85: 0 | Z85: 0 | AC85: 0
A86: 5 | B86: 2.3.1.2.4 | C86: 2 | D86: 2.3 | E86: 2.3.1 | F86: 2.3.1.2 | G86: 2.3.1.2.4 | M86: 모듈D | N86: (담당자미지정) | O86: 2021-08-01 | P86: 2021-09-15 | Q86: 2021-09-05 | R86: 2021-09-11 | S86: 37 | T86: 17 | U86: 5 | V86: 0 | W86: 0 | X86: 1 | Y86: 0 | Z86: 0 | AC86: 0
A87: 5 | B87: 2.3.1.2.4 | C87: 2 | D87: 2.3 | E87: 2.3.1 | F87: 2.3.1.2 | G87: 2.3.1.2.4 | M87: 모듈D | N87: (담당자미지정) | O87: 2021-08-01 | P87: 2021-09-15 | Q87: 2021-09-12 | R87: 2021-09-18 | S87: 38 | T87: 18 | U87: 3 | V87: 0 | W87: 0 | X87: 1 | Y87: 0 | Z87: 0 | AC87: 0
A88: 4 | B88: 2.3.2.1 | C88: 2 | D88: 2.3 | E88: 2.3.2 | F88: 2.3.2.1 | M88: 통합테스트실시 | N88: (담당자미지정) | O88: 2021-08-29 | P88: 2021-09-16 | Q88: 2021-08-29 | R88: 2021-09-04 | S88: 36 | T88: 16 | U88: 5 | V88: 0 | W88: 0 | X88: 1 | Y88: 0 | Z88: 0 | AC88: 0
A89: 4 | B89: 2.3.2.1 | C89: 2 | D89: 2.3 | E89: 2.3.2 | F89: 2.3.2.1 | M89: 통합테스트실시 | N89: (담당자미지정) | O89: 2021-08-29 | P89: 2021-09-16 | Q89: 2021-09-05 | R89: 2021-09-11 | S89: 37 | T89: 17 | U89: 5 | V89: 0 | W89: 0 | X89: 1 | Y89: 0 | Z89: 0 | AC89: 0
A90: 4 | B90: 2.3.2.1 | C90: 2 | D90: 2.3 | E90: 2.3.2 | F90: 2.3.2.1 | M90: 통합테스트실시 | N90: (담당자미지정) | O90: 2021-08-29 | P90: 2021-09-16 | Q90: 2021-09-12 | R90: 2021-09-18 | S90: 38 | T90: 18 | U90: 4 | V90: 0 | W90: 0 | X90: 1 | Y90: 0 | Z90: 0 | AC90: 0
A91: 4 | B91: 2.3.2.2 | C91: 2 | D91: 2.3 | E91: 2.3.2 | F91: 2.3.2.2 | M91: 시스템테스트실시 | N91: (담당자미지정) | O91: 2021-09-19 | P91: 2021-09-23 | Q91: 2021-09-19 | R91: 2021-09-25 | S91: 39 | T91: 19 | U91: 1 | V91: 0 | W91: 0 | X91: 1 | Y91: 0 | Z91: 0 | AC91: 0
A92: 4 | B92: 2.4.1.1 | C92: 2 | D92: 2.4 | E92: 2.4.1 | F92: 2.4.1.1 | M92: Release 및 Contingency plan수립 | N92: (담당자미지정) | O92: 2021-09-19 | P92: 2021-09-21 | Q92: 2021-09-19 | R92: 2021-09-25 | S92: 39 | T92: 19 | U92: 0 | V92: 0 | W92: 0 | X92: 1 | Y92: 0 | Z92: 0 | AC92: 0
A93: 4 | B93: 2.4.2.1 | C93: 2 | D93: 2.4 | E93: 2.4.2 | F93: 2.4.2.1 | M93: 데이터베이스구축 | N93: (담당자미지정) | O93: 2021-09-23 | P93: 2021-09-25 | Q93: 2021-09-19 | R93: 2021-09-25 | S93: 39 | T93: 19 | U93: 2 | V93: 0 | W93: 0 | X93: 1 | Y93: 0 | Z93: 0 | AC93: 0
A94: 4 | B94: 2.4.2.2 | C94: 2 | D94: 2.4 | E94: 2.4.2 | F94: 2.4.2.2 | M94: 소프트웨어설치 | N94: (담당자미지정) | O94: 2021-09-23 | P94: 2021-09-25 | Q94: 2021-09-19 | R94: 2021-09-25 | S94: 39 | T94: 19 | U94: 2 | V94: 0 | W94: 0 | X94: 1 | Y94: 0 | Z94: 0 | AC94: 0
A95: 4 | B95: 2.4.2.3 | C95: 2 | D95: 2.4 | E95: 2.4.2 | F95: 2.4.2.3 | M95: 인수테스트실시 | N95: (담당자미지정) | O95: 2021-09-23 | P95: 2021-09-25 | Q95: 2021-09-19 | R95: 2021-09-25 | S95: 39 | T95: 19 | U95: 2 | V95: 0 | W95: 0 | X95: 1 | Y95: 0 | Z95: 0 | AC95: 0
A96: 4 | B96: 2.4.2.4 | C96: 2 | D96: 2.4 | E96: 2.4.2 | F96: 2.4.2.4 | M96: 시스템오픈 | N96: (담당자미지정) | O96: 2021-09-26 | P96: 2021-09-26 | Q96: 2021-09-26 | R96: 2021-10-02 | S96: 40 | T96: 20 | U96: 0 | V96: 0 | W96: 0 | X96: 0 | Y96: 0 | Z96: 0 | AC96: 0

Sheet ServerData
A1: xlgantt_reserved | B1: project_information | C1: xlgantt_task_connection | D1: xlgantt_task_id | E1: wbs_level | F1: WBS | G1: 작업 | H1: 비고 | I1: 시작일 | J1: 완료일 | K1: __확인사항 | L1: Calendar | M1: 총작업량 | N1: __확인사항2 | O1: 계획작업량 | P1: 총기간 | Q1: 계획기간 | R1: 실제시작일 | S1: 실제완료일 | T1: 실제총작업량 | U1: 실제총기간 | V1: 가중치 | W1: 담당 | X1: 산출물 | Y1: 계획진척율 | Z1: 실적진척율
B2: XYZ시스템 구축 | C2: 1;3;4;0;1 | D2: 1 | E2: 1 | F2: 1 | G2: Project X | I2: 2021-05-24 | J2: 2021-07-30 | Y2: 0 | Z2: 0
B3: 2021-05-01 | C3: 2;4;8;0;1 | D3: 2 | E3: 2 | F3: 1.1 | G3: 분석 | I3: 2021-05-24 | J3: 2021-05-28 | Y3: 0 | Z3: 0
B4: 2021-08-31 | C4: 3;5;6;0;0 | D4: 3 | E4: 3 | F4: 1.1.1 | G4: 범위정의 | I4: 2021-05-24 | J4: 2021-05-27 | W4: 이지은,김분석 | Y4: 1 | Z4: 1
B5: 0.45 | C5: 4;8;9;0;1 | D5: 4 | E5: 3 | F5: 1.1.2 | G5: 범위확정 | I5: 2021-05-28 | J5: 2021-05-28 | K5: 범위확정시 주요화면 준비 | N5: 범위확정시 주요화면 준비 | Y5: 1 | Z5: 1
B6: 0.4333 | C6: 5;7;11;0;1 | D6: 5 | E6: 3 | F6: 1.1.3 | G6: Benchmarking | I6: 2021-05-24 | J6: 2021-05-26 | W6: 이지은 | Y6: 0 | Z6: 0
C7: 6;11;12;0;1 | D7: 6 | E7: 3 | F7: 1.1.4 | G7: Workshop | I7: 2021-05-27 | J7: 2021-05-28 | W7: 이지은 | Y7: 0 | Z7: 0
C8: 7;10;14;0;1 | D8: 7 | E8: 2 | F8: 1.2 | G8: 설계 | I8: 2021-05-31 | J8: 2021-06-18 | Y8: 0 | Z8: 0
C9: 8;14;15;0;1 | D9: 8 | E9: 3 | F9: 1.2.1 | G9: 데이터베이스 설계 | I9: 2021-05-31 | J9: 2021-06-04 | W9: 박설계 | Y9: 0 | Z9: 0
C10: 9;15;16;0;1 | D10: 9 | E10: 3 | F10: 1.2.2 | G10: UI설계 | I10: 2021-06-07 | J10: 2021-06-18 | W10: 박설계 | Y10: 0 | Z10: 0
D11: 10 | E11: 2 | F11: 1.3 | G11: 개발 | I11: 2021-06-21 | J11: 2021-07-16 | Y11: 0 | Z11: 0
D12: 11 | E12: 3 | F12: 1.3.1 | G12: 코딩 | I12: 2021-06-21 | J12: 2021-07-09 | Y12: 0 | Z12: 0
D13: 12 | E13: 3 | F13: 1.3.2 | G13: 단위테스트 | I13: 2021-07-12 | J13: 2021-07-16 | W13: 나개발 | Y13: 0 | Z13: 0
D14: 13 | E14: 2 | F14: 1.4 | G14: 테스트 | I14: 2021-07-19 | J14: 2021-07-30 | Y14: 0 | Z14: 0
D15: 14 | E15: 3 | F15: 1.4.1 | G15: 통합테스트 | I15: 2021-07-19 | J15: 2021-07-23 | W15: 김분석,이지은 | Y15: 0 | Z15: 0
D16: 15 | E16: 3 | F16: 1.4.2 | G16: 시스템테스트 | I16: 2021-07-26 | J16: 2021-07-28 | K16: 성능테스트Tool필요 | N16: 성능테스트Tool필요 | W16: 홍길동 | Y16: 0 | Z16: 0
D17: 16 | E17: 3 | F17: 1.4.3 | G17: UAT | I17: 2021-07-29 | J17: 2021-07-30 | W17: 나고객,이고객 | Y17: 0 | Z17: 0
